{"text_format":"3","workbook":"xlsx","n_sheets":4,"sheets":["Score bijhouden","Uw prestaties","Instellingen","Berekeningen"],"not_rendered":{"defined_names":3,"comments":1},"read":"whole","date_system":"1900"}

{"sheet":"Score bijhouden","index":0,"n_rows":14,"n_cols":6,"rows_kept":14}
[null,"Voer hier uw scores in"]
[]
[null,null,"Les","Type","Beschrijving","Score"]
[null,null,"Modern Frans","Huiswerk","Geschiedenis tweede wereldoorlog",{"v":0.8,"d":"80%"}]
[null,null,"Geavanceerde programmering in Java","Tussentijds examen",null,{"v":0.75,"d":"75%"}]
[null,null,"Spaans","Huiswerk",null,{"v":0.5,"d":"50%"}]
[null,null,"Theoretische natuurkunde","Huiswerk",null,{"v":0.95,"d":"95%"}]
[null,null,"Modern Frans","Huiswerk","Geschiedenis eerste wereldoorlog",{"v":0.9,"d":"90%"}]
[null,null,"Modern Frans","Huiswerk","Pagina's 30-41",{"v":0.8,"d":"80%"}]
[null,null,"Samenstelling","Essay","Beargumentering",{"v":0.95,"d":"95%"}]
[null,null,"Wiskunde 1","Huiswerk","Pagina's 21 en 26",{"v":0.8,"d":"80%"}]
[null,null,"Wiskunde 2","Huiswerk","Pagina's 15 en 18",{"v":0.85,"d":"85%"}]
[null,null,"Wiskunde 1","Huiswerk","Pagina's 34-36",{"v":0.8,"d":"80%"}]
[null,null,"Wiskunde 2","Test",null,{"v":0.95,"d":"95%"}]

{"sheet":"Uw prestaties","index":1,"n_rows":31,"n_cols":8,"rows_kept":31}
[null,"Uw prestaties"]
[]
[null,null,"Taal"]
[null,null,{"$f":"\"Uren: \"&SUM(tblKlassen[Uren met studiepunten])","v":"Uren: 24"},{"$f":"AVERAGE(D7:D31)","v":{"v":0.8104761904761906,"d":"81%"}},{"$f":"AVERAGE(E7:E31)","v":{"v":2.7142857142857144,"d":"2.71"}},{"$f":"SUM(F7:F31)","v":{"v":2.625,"d":"2.63"}},{"$f":"IFERROR(HLOOKUP(D4,ltstToewijzingGemiddelde,2),\"\")","v":"B-"}]
[]
[null,null,"Lessen","%","Gemiddelde","Gewogen gemiddelde","Letter","Algehele prestaties"]
[null,null,{"$f":"Berekeningen!C6","v":"Modern Frans"},{"$f":"Berekeningen!AL6","v":{"v":0.8333333333333334,"d":"83%"}},{"$f":"Berekeningen!AM6","v":{"v":3,"d":"3.00"}},{"$f":"IFERROR(E7*Instellingen!D9/SUM(tblKlassen[Uren met studiepunten]),\"\")","v":{"v":0.375,"d":"0.38"}},{"$f":"Berekeningen!AN6","v":"B"}]
[null,null,{"$f":"Berekeningen!C7","v":"Theoretische natuurkunde"},{"$f":"Berekeningen!AL7","v":{"v":0.95,"d":"95%"}},{"$f":"Berekeningen!AM7","v":{"v":4,"d":"4.00"}},{"$f":"IFERROR(E8*Instellingen!D10/SUM(tblKlassen[Uren met studiepunten]),\"\")","v":{"v":0.5,"d":"0.50"}},{"$f":"Berekeningen!AN7","v":"A"}]
[null,null,{"$f":"Berekeningen!C8","v":"Wiskunde 1"},{"$f":"Berekeningen!AL8","v":{"v":0.8000000000000002,"d":"80%"}},{"$f":"Berekeningen!AM8","v":2.67},{"$f":"IFERROR(E9*Instellingen!D11/SUM(tblKlassen[Uren met studiepunten]),\"\")","v":{"v":0.445,"d":"0.45"}},{"$f":"Berekeningen!AN8","v":"B-"}]
[null,null,{"$f":"Berekeningen!C9","v":"Wiskunde 2"},{"$f":"Berekeningen!AL9","v":{"v":0.89,"d":"89%"}},{"$f":"Berekeningen!AM9","v":3.33},{"$f":"IFERROR(E10*Instellingen!D12/SUM(tblKlassen[Uren met studiepunten]),\"\")","v":{"v":0.555,"d":"0.56"}},{"$f":"Berekeningen!AN9","v":"B+"}]
[null,null,{"$f":"Berekeningen!C10","v":"Geavanceerde programmering in Java"},{"$f":"Berekeningen!AL10","v":{"v":0.7500000000000001,"d":"75%"}},{"$f":"Berekeningen!AM10","v":{"v":2,"d":"2.00"}},{"$f":"IFERROR(E11*Instellingen!D13/SUM(tblKlassen[Uren met studiepunten]),\"\")","v":{"v":0.4166666666666667,"d":"0.42"}},{"$f":"Berekeningen!AN10","v":"C"}]
[null,null,{"$f":"Berekeningen!C11","v":"Spaans"},{"$f":"Berekeningen!AL11","v":{"v":0.5,"d":"50%"}},{"$f":"Berekeningen!AM11","v":{"v":0,"d":"0.00"}},{"$f":"IFERROR(E12*Instellingen!D14/SUM(tblKlassen[Uren met studiepunten]),\"\")","v":{"v":0,"d":"0.00"}},{"$f":"Berekeningen!AN11","v":"F"}]
[null,null,{"$f":"Berekeningen!C12","v":"Samenstelling"},{"$f":"Berekeningen!AL12","v":{"v":0.95,"d":"95%"}},{"$f":"Berekeningen!AM12","v":{"v":4,"d":"4.00"}},{"$f":"IFERROR(E13*Instellingen!D15/SUM(tblKlassen[Uren met studiepunten]),\"\")","v":{"v":0.3333333333333333,"d":"0.33"}},{"$f":"Berekeningen!AN12","v":"A"}]
[null,null,{"$f":"Berekeningen!C13","v":""},{"$f":"Berekeningen!AL13","v":""},{"$f":"Berekeningen!AM13","v":""},{"$f":"IFERROR(E14*Instellingen!D16/SUM(tblKlassen[Uren met studiepunten]),\"\")","v":""},{"$f":"Berekeningen!AN13","v":""}]
[null,null,{"$f":"Berekeningen!C14","v":""},{"$f":"Berekeningen!AL14","v":""},{"$f":"Berekeningen!AM14","v":""},{"$f":"IFERROR(E15*Instellingen!D17/SUM(tblKlassen[Uren met studiepunten]),\"\")","v":""},{"$f":"Berekeningen!AN14","v":""}]
[null,null,{"$f":"Berekeningen!C15","v":""},{"$f":"Berekeningen!AL15","v":""},{"$f":"Berekeningen!AM15","v":""},{"$f":"IFERROR(E16*Instellingen!D18/SUM(tblKlassen[Uren met studiepunten]),\"\")","v":""},{"$f":"Berekeningen!AN15","v":""}]
[null,null,{"$f":"Berekeningen!C16","v":""},{"$f":"Berekeningen!AL16","v":""},{"$f":"Berekeningen!AM16","v":""},{"$f":"IFERROR(E17*Instellingen!D19/SUM(tblKlassen[Uren met studiepunten]),\"\")","v":""},{"$f":"Berekeningen!AN16","v":""}]
[null,null,{"$f":"Berekeningen!C17","v":""},{"$f":"Berekeningen!AL17","v":""},{"$f":"Berekeningen!AM17","v":""},{"$f":"IFERROR(E18*Instellingen!D20/SUM(tblKlassen[Uren met studiepunten]),\"\")","v":""},{"$f":"Berekeningen!AN17","v":""}]
[null,null,{"$f":"Berekeningen!C18","v":""},{"$f":"Berekeningen!AL18","v":""},{"$f":"Berekeningen!AM18","v":""},{"$f":"IFERROR(E19*Instellingen!D21/SUM(tblKlassen[Uren met studiepunten]),\"\")","v":""},{"$f":"Berekeningen!AN18","v":""}]
[null,null,{"$f":"Berekeningen!C19","v":""},{"$f":"Berekeningen!AL19","v":""},{"$f":"Berekeningen!AM19","v":""},{"$f":"IFERROR(E20*Instellingen!D22/SUM(tblKlassen[Uren met studiepunten]),\"\")","v":""},{"$f":"Berekeningen!AN19","v":""}]
[null,null,{"$f":"Berekeningen!C20","v":""},{"$f":"Berekeningen!AL20","v":""},{"$f":"Berekeningen!AM20","v":""},{"$f":"IFERROR(E21*Instellingen!D23/SUM(tblKlassen[Uren met studiepunten]),\"\")","v":""},{"$f":"Berekeningen!AN20","v":""}]
[null,null,{"$f":"Berekeningen!C21","v":""},{"$f":"Berekeningen!AL21","v":""},{"$f":"Berekeningen!AM21","v":""},{"$f":"IFERROR(E22*Instellingen!D24/SUM(tblKlassen[Uren met studiepunten]),\"\")","v":""},{"$f":"Berekeningen!AN21","v":""}]
[null,null,{"$f":"Berekeningen!C22","v":""},{"$f":"Berekeningen!AL22","v":""},{"$f":"Berekeningen!AM22","v":""},{"$f":"IFERROR(E23*Instellingen!D25/SUM(tblKlassen[Uren met studiepunten]),\"\")","v":""},{"$f":"Berekeningen!AN22","v":""}]
[null,null,{"$f":"Berekeningen!C23","v":""},{"$f":"Berekeningen!AL23","v":""},{"$f":"Berekeningen!AM23","v":""},{"$f":"IFERROR(E24*Instellingen!D26/SUM(tblKlassen[Uren met studiepunten]),\"\")","v":""},{"$f":"Berekeningen!AN23","v":""}]
[null,null,{"$f":"Berekeningen!C24","v":""},{"$f":"Berekeningen!AL24","v":""},{"$f":"Berekeningen!AM24","v":""},{"$f":"IFERROR(E25*Instellingen!D27/SUM(tblKlassen[Uren met studiepunten]),\"\")","v":""},{"$f":"Berekeningen!AN24","v":""}]
[null,null,{"$f":"Berekeningen!C25","v":""},{"$f":"Berekeningen!AL25","v":""},{"$f":"Berekeningen!AM25","v":""},{"$f":"IFERROR(E26*Instellingen!D28/SUM(tblKlassen[Uren met studiepunten]),\"\")","v":""},{"$f":"Berekeningen!AN25","v":""}]
[null,null,{"$f":"Berekeningen!C26","v":""},{"$f":"Berekeningen!AL26","v":""},{"$f":"Berekeningen!AM26","v":""},{"$f":"IFERROR(E27*Instellingen!D29/SUM(tblKlassen[Uren met studiepunten]),\"\")","v":""},{"$f":"Berekeningen!AN26","v":""}]
[null,null,{"$f":"Berekeningen!C27","v":""},{"$f":"Berekeningen!AL27","v":""},{"$f":"Berekeningen!AM27","v":""},{"$f":"IFERROR(E28*Instellingen!D30/SUM(tblKlassen[Uren met studiepunten]),\"\")","v":""},{"$f":"Berekeningen!AN27","v":""}]
[null,null,{"$f":"Berekeningen!C28","v":""},{"$f":"Berekeningen!AL28","v":""},{"$f":"Berekeningen!AM28","v":""},{"$f":"IFERROR(E29*Instellingen!D31/SUM(tblKlassen[Uren met studiepunten]),\"\")","v":""},{"$f":"Berekeningen!AN28","v":""}]
[null,null,{"$f":"Berekeningen!C29","v":""},{"$f":"Berekeningen!AL29","v":""},{"$f":"Berekeningen!AM29","v":""},{"$f":"IFERROR(E30*Instellingen!D32/SUM(tblKlassen[Uren met studiepunten]),\"\")","v":""},{"$f":"Berekeningen!AN29","v":""}]
[null,null,{"$f":"Berekeningen!C30","v":""},{"$f":"Berekeningen!AL30","v":""},{"$f":"Berekeningen!AM30","v":""},{"$f":"IFERROR(E31*Instellingen!D33/SUM(tblKlassen[Uren met studiepunten]),\"\")","v":""},{"$f":"Berekeningen!AN30","v":""}]

{"sheet":"Instellingen","index":2,"n_rows":15,"n_cols":16,"rows_kept":15,"merged":[[5,2,5,15]]}
[null,"Instellingen"]
[null,null,"Toewijzing van scores en gemiddelde"]
[null,null,"Percentage",{"v":0,"d":"0%"},{"v":0.6,"d":"60%"},{"v":0.63,"d":"63%"},{"v":0.67,"d":"67%"},{"v":0.7,"d":"70%"},{"v":0.73,"d":"73%"},{"v":0.77,"d":"77%"},{"v":0.8,"d":"80%"},{"v":0.83,"d":"83%"},{"v":0.87,"d":"87%"},{"v":0.9,"d":"90%"},{"v":0.93,"d":"93%"},{"v":0.97,"d":"97%"}]
[null,null,"Letterbeoordeling","F","D-","D","D+","C-","C","C+","B-","B","B+","A-","A","A+"]
[null,null,"Gemiddelde",0,0.67,1,1.33,1.67,2,2.33,2.67,3,3.33,3.67,4,4]
[]
[null,null,"Gewogen scores voor maximaal 25 lessen"]
[null,null,"Lessen die u volgt","Uren met studiepunten","Huiswerk","Essay","Test","Project","Tussentijds examen","Eindexamen","Overige","% totaal"]
[null,null,"Modern Frans",{"v":3,"d":"3.0"},{"v":0.1,"d":"10%"},{"v":0.15,"d":"15%"},{"v":0.15,"d":"15%"},{"v":0.1,"d":"10%"},{"v":0.2,"d":"20%"},{"v":0.3,"d":"30%"},null,{"$f":"SUM(tblKlassen[[#This Row],[Huiswerk]:[Overige]])","v":{"v":1,"d":"100%"}}]
[null,null,"Theoretische natuurkunde",{"v":3,"d":"3.0"},{"v":0.15,"d":"15%"},{"v":0.15,"d":"15%"},{"v":0.1,"d":"10%"},{"v":0.1,"d":"10%"},{"v":0.15,"d":"15%"},{"v":0.3,"d":"30%"},{"v":0.05,"d":"5%"},{"$f":"SUM(tblKlassen[[#This Row],[Huiswerk]:[Overige]])","v":{"v":1,"d":"100%"}}]
[null,null,"Wiskunde 1",{"v":4,"d":"4.0"},{"v":0.1,"d":"10%"},{"v":0.15,"d":"15%"},{"v":0.15,"d":"15%"},{"v":0.1,"d":"10%"},{"v":0.2,"d":"20%"},{"v":0.3,"d":"30%"},null,{"$f":"SUM(tblKlassen[[#This Row],[Huiswerk]:[Overige]])","v":{"v":1,"d":"100%"}}]
[null,null,"Wiskunde 2",{"v":4,"d":"4.0"},{"v":0.15,"d":"15%"},{"v":0.15,"d":"15%"},{"v":0.1,"d":"10%"},{"v":0.1,"d":"10%"},{"v":0.15,"d":"15%"},{"v":0.3,"d":"30%"},{"v":0.05,"d":"5%"},{"$f":"SUM(tblKlassen[[#This Row],[Huiswerk]:[Overige]])","v":{"v":1,"d":"100%"}}]
[null,null,"Geavanceerde programmering in Java",{"v":5,"d":"5.0"},{"v":0.15,"d":"15%"},{"v":0.15,"d":"15%"},{"v":0.1,"d":"10%"},{"v":0.1,"d":"10%"},{"v":0.2,"d":"20%"},{"v":0.3,"d":"30%"},null,{"$f":"SUM(tblKlassen[[#This Row],[Huiswerk]:[Overige]])","v":{"v":1,"d":"100%"}}]
[null,null,"Spaans",{"v":3,"d":"3.0"},{"v":0.1,"d":"10%"},{"v":0.15,"d":"15%"},{"v":0.17,"d":"17%"},{"v":0.13,"d":"13%"},{"v":0.2,"d":"20%"},{"v":0.2,"d":"20%"},{"v":0.05,"d":"5%"},{"$f":"SUM(tblKlassen[[#This Row],[Huiswerk]:[Overige]])","v":{"v":1,"d":"100%"}}]
[null,null,"Samenstelling",{"v":2,"d":"2.0"},{"v":0.15,"d":"15%"},{"v":0.15,"d":"15%"},{"v":0.12,"d":"12%"},{"v":0.15,"d":"15%"},{"v":0.15,"d":"15%"},{"v":0.25,"d":"25%"},{"v":0.03,"d":"3%"},{"$f":"SUM(tblKlassen[[#This Row],[Huiswerk]:[Overige]])","v":{"v":1,"d":"100%"}}]

{"sheet":"Berekeningen","index":3,"n_rows":657,"n_cols":40,"rows_kept":657,"hidden":true}
[null,"Berekeningen"]
[null,null,"Dit werkblad bevat berekeningen voor uw cijfers en gemiddelde en moet verborgen blijven. Wijzigingen in dit blad kunnen tot fouten leiden."]
[]
[null,null,"Lijst met huidige lessen","Scores (van 1)",{"$nulls":24},"Cijferberekening"]
[null,null,"Les",1,2,3,4,5,6,7,8,9,10,11,12,13,14,15,16,17,18,19,20,21,22,23,24,25,{"$f":"tblKlassen[[#Headers],[Huiswerk]]","v":"Huiswerk"},{"$f":"tblKlassen[[#Headers],[Essay]]","v":"Essay"},{"$f":"tblKlassen[[#Headers],[Test]]","v":"Test"},{"$f":"tblKlassen[[#Headers],[Project]]","v":"Project"},{"$f":"tblKlassen[[#Headers],[Tussentijds examen]]","v":"Tussentijds examen"},{"$f":"tblKlassen[[#Headers],[Eindexamen]]","v":"Eindexamen"},{"$f":"tblKlassen[[#Headers],[Overige]]","v":"Overige"},"Totaal","Totaal aantal mogelijke punten","Totaal %","Cijfer","Letterbeoordeling"]
[null,null,{"$f":"IF(Instellingen!C9=\"\",\"\",Instellingen!C9)","v":"Modern Frans"},{"$f":"IFERROR(INDEX(tblKlassecijfers[],MATCH($C6:$C30&D$5:AB$5,Berekeningen!$C$33:$C$657,0),4),\"\")","v":{"v":0.8,"d":"80%"}},{"v":0.9,"d":"90%"},{"v":0.8,"d":"80%"},"","","","","","","","","","","","","","","","","","","","","","",{"$f":"IFERROR(AVERAGEIFS(tblKlassecijfers[Score],tblKlassecijfers[Les],Berekeningen!$C6,tblKlassecijfers[Type],Berekeningen!AC$5)*Instellingen!E9,\"\")","v":0.08333333333333334},{"$f":"IFERROR(AVERAGEIFS(tblKlassecijfers[Score],tblKlassecijfers[Les],Berekeningen!$C6,tblKlassecijfers[Type],Berekeningen!AD$5)*Instellingen!F9,\"\")","v":""},{"$f":"IFERROR(AVERAGEIFS(tblKlassecijfers[Score],tblKlassecijfers[Les],Berekeningen!$C6,tblKlassecijfers[Type],Berekeningen!AE$5)*Instellingen!G9,\"\")","v":""},{"$f":"IFERROR(AVERAGEIFS(tblKlassecijfers[Score],tblKlassecijfers[Les],Berekeningen!$C6,tblKlassecijfers[Type],Berekeningen!AF$5)*Instellingen!H9,\"\")","v":""},{"$f":"IFERROR(AVERAGEIFS(tblKlassecijfers[Score],tblKlassecijfers[Les],Berekeningen!$C6,tblKlassecijfers[Type],Berekeningen!AG$5)*Instellingen!I9,\"\")","v":""},{"$f":"IFERROR(AVERAGEIFS(tblKlassecijfers[Score],tblKlassecijfers[Les],Berekeningen!$C6,tblKlassecijfers[Type],Berekeningen!AH$5)*Instellingen!J9,\"\")","v":""},{"$f":"IFERROR(AVERAGEIFS(tblKlassecijfers[Score],tblKlassecijfers[Les],Berekeningen!$C6,tblKlassecijfers[Type],Berekeningen!AI$5)*Instellingen!K9,\"\")","v":""},{"$f":"SUM(AC6:AI6)","v":0.08333333333333334},{"$f":"SUMIFS(Instellingen!E9:K9,Berekeningen!AC6:AI6,\">0\")","v":0.1},{"$f":"IFERROR(AJ6/AK6,\"\")","v":{"v":0.8333333333333334,"d":"83%"}},{"$f":"IFERROR(HLOOKUP(AL6,ltstToewijzingGemiddelde,3),\"\")","v":3},{"$f":"IFERROR(HLOOKUP(AL6,ltstToewijzingGemiddelde,2),\"\")","v":"B"}]
[null,null,{"$f":"IF(Instellingen!C10=\"\",\"\",Instellingen!C10)","v":"Theoretische natuurkunde"},{"v":0.95,"d":"95%"},"","","","","","","","","","","","","","","","","","","","","","","","",{"$f":"IFERROR(AVERAGEIFS(tblKlassecijfers[Score],tblKlassecijfers[Les],Berekeningen!$C7,tblKlassecijfers[Type],Berekeningen!AC$5)*Instellingen!E10,\"\")","v":0.1425},{"$f":"IFERROR(AVERAGEIFS(tblKlassecijfers[Score],tblKlassecijfers[Les],Berekeningen!$C7,tblKlassecijfers[Type],Berekeningen!AD$5)*Instellingen!F10,\"\")","v":""},{"$f":"IFERROR(AVERAGEIFS(tblKlassecijfers[Score],tblKlassecijfers[Les],Berekeningen!$C7,tblKlassecijfers[Type],Berekeningen!AE$5)*Instellingen!G10,\"\")","v":""},{"$f":"IFERROR(AVERAGEIFS(tblKlassecijfers[Score],tblKlassecijfers[Les],Berekeningen!$C7,tblKlassecijfers[Type],Berekeningen!AF$5)*Instellingen!H10,\"\")","v":""},{"$f":"IFERROR(AVERAGEIFS(tblKlassecijfers[Score],tblKlassecijfers[Les],Berekeningen!$C7,tblKlassecijfers[Type],Berekeningen!AG$5)*Instellingen!I10,\"\")","v":""},{"$f":"IFERROR(AVERAGEIFS(tblKlassecijfers[Score],tblKlassecijfers[Les],Berekeningen!$C7,tblKlassecijfers[Type],Berekeningen!AH$5)*Instellingen!J10,\"\")","v":""},{"$f":"IFERROR(AVERAGEIFS(tblKlassecijfers[Score],tblKlassecijfers[Les],Berekeningen!$C7,tblKlassecijfers[Type],Berekeningen!AI$5)*Instellingen!K10,\"\")","v":""},{"$f":"SUM(AC7:AI7)","v":0.1425},{"$f":"SUMIFS(Instellingen!E10:K10,Berekeningen!AC7:AI7,\">0\")","v":0.15},{"$f":"IFERROR(AJ7/AK7,\"\")","v":{"v":0.95,"d":"95%"}},4,"A"]
[null,null,{"$f":"IF(Instellingen!C11=\"\",\"\",Instellingen!C11)","v":"Wiskunde 1"},{"v":0.8,"d":"80%"},{"v":0.8,"d":"80%"},"","","","","","","","","","","","","","","","","","","","","","","",{"$f":"IFERROR(AVERAGEIFS(tblKlassecijfers[Score],tblKlassecijfers[Les],Berekeningen!$C8,tblKlassecijfers[Type],Berekeningen!AC$5)*Instellingen!E11,\"\")","v":0.08000000000000002},{"$f":"IFERROR(AVERAGEIFS(tblKlassecijfers[Score],tblKlassecijfers[Les],Berekeningen!$C8,tblKlassecijfers[Type],Berekeningen!AD$5)*Instellingen!F11,\"\")","v":""},{"$f":"IFERROR(AVERAGEIFS(tblKlassecijfers[Score],tblKlassecijfers[Les],Berekeningen!$C8,tblKlassecijfers[Type],Berekeningen!AE$5)*Instellingen!G11,\"\")","v":""},{"$f":"IFERROR(AVERAGEIFS(tblKlassecijfers[Score],tblKlassecijfers[Les],Berekeningen!$C8,tblKlassecijfers[Type],Berekeningen!AF$5)*Instellingen!H11,\"\")","v":""},{"$f":"IFERROR(AVERAGEIFS(tblKlassecijfers[Score],tblKlassecijfers[Les],Berekeningen!$C8,tblKlassecijfers[Type],Berekeningen!AG$5)*Instellingen!I11,\"\")","v":""},{"$f":"IFERROR(AVERAGEIFS(tblKlassecijfers[Score],tblKlassecijfers[Les],Berekeningen!$C8,tblKlassecijfers[Type],Berekeningen!AH$5)*Instellingen!J11,\"\")","v":""},{"$f":"IFERROR(AVERAGEIFS(tblKlassecijfers[Score],tblKlassecijfers[Les],Berekeningen!$C8,tblKlassecijfers[Type],Berekeningen!AI$5)*Instellingen!K11,\"\")","v":""},0.08000000000000002,{"$f":"SUMIFS(Instellingen!E11:K11,Berekeningen!AC8:AI8,\">0\")","v":0.1},{"v":0.8000000000000002,"d":"80%"},2.67,"B-"]
[null,null,{"$f":"IF(Instellingen!C12=\"\",\"\",Instellingen!C12)","v":"Wiskunde 2"},{"v":0.85,"d":"85%"},{"v":0.95,"d":"95%"},"","","","","","","","","","","","","","","","","","","","","","","",{"$f":"IFERROR(AVERAGEIFS(tblKlassecijfers[Score],tblKlassecijfers[Les],Berekeningen!$C9,tblKlassecijfers[Type],Berekeningen!AC$5)*Instellingen!E12,\"\")","v":0.1275},{"$f":"IFERROR(AVERAGEIFS(tblKlassecijfers[Score],tblKlassecijfers[Les],Berekeningen!$C9,tblKlassecijfers[Type],Berekeningen!AD$5)*Instellingen!F12,\"\")","v":""},{"$f":"IFERROR(AVERAGEIFS(tblKlassecijfers[Score],tblKlassecijfers[Les],Berekeningen!$C9,tblKlassecijfers[Type],Berekeningen!AE$5)*Instellingen!G12,\"\")","v":0.095},{"$f":"IFERROR(AVERAGEIFS(tblKlassecijfers[Score],tblKlassecijfers[Les],Berekeningen!$C9,tblKlassecijfers[Type],Berekeningen!AF$5)*Instellingen!H12,\"\")","v":""},{"$f":"IFERROR(AVERAGEIFS(tblKlassecijfers[Score],tblKlassecijfers[Les],Berekeningen!$C9,tblKlassecijfers[Type],Berekeningen!AG$5)*Instellingen!I12,\"\")","v":""},{"$f":"IFERROR(AVERAGEIFS(tblKlassecijfers[Score],tblKlassecijfers[Les],Berekeningen!$C9,tblKlassecijfers[Type],Berekeningen!AH$5)*Instellingen!J12,\"\")","v":""},{"$f":"IFERROR(AVERAGEIFS(tblKlassecijfers[Score],tblKlassecijfers[Les],Berekeningen!$C9,tblKlassecijfers[Type],Berekeningen!AI$5)*Instellingen!K12,\"\")","v":""},0.2225,{"$f":"SUMIFS(Instellingen!E12:K12,Berekeningen!AC9:AI9,\">0\")","v":0.25},{"v":0.89,"d":"89%"},3.33,"B+"]
[null,null,{"$f":"IF(Instellingen!C13=\"\",\"\",Instellingen!C13)","v":"Geavanceerde programmering in Java"},{"v":0.75,"d":"75%"},"","","","","","","","","","","","","","","","","","","","","","","","",{"$f":"IFERROR(AVERAGEIFS(tblKlassecijfers[Score],tblKlassecijfers[Les],Berekeningen!$C10,tblKlassecijfers[Type],Berekeningen!AC$5)*Instellingen!E13,\"\")","v":""},{"$f":"IFERROR(AVERAGEIFS(tblKlassecijfers[Score],tblKlassecijfers[Les],Berekeningen!$C10,tblKlassecijfers[Type],Berekeningen!AD$5)*Instellingen!F13,\"\")","v":""},{"$f":"IFERROR(AVERAGEIFS(tblKlassecijfers[Score],tblKlassecijfers[Les],Berekeningen!$C10,tblKlassecijfers[Type],Berekeningen!AE$5)*Instellingen!G13,\"\")","v":""},{"$f":"IFERROR(AVERAGEIFS(tblKlassecijfers[Score],tblKlassecijfers[Les],Berekeningen!$C10,tblKlassecijfers[Type],Berekeningen!AF$5)*Instellingen!H13,\"\")","v":""},{"$f":"IFERROR(AVERAGEIFS(tblKlassecijfers[Score],tblKlassecijfers[Les],Berekeningen!$C10,tblKlassecijfers[Type],Berekeningen!AG$5)*Instellingen!I13,\"\")","v":0.15000000000000002},{"$f":"IFERROR(AVERAGEIFS(tblKlassecijfers[Score],tblKlassecijfers[Les],Berekeningen!$C10,tblKlassecijfers[Type],Berekeningen!AH$5)*Instellingen!J13,\"\")","v":""},{"$f":"IFERROR(AVERAGEIFS(tblKlassecijfers[Score],tblKlassecijfers[Les],Berekeningen!$C10,tblKlassecijfers[Type],Berekeningen!AI$5)*Instellingen!K13,\"\")","v":""},0.15000000000000002,{"$f":"SUMIFS(Instellingen!E13:K13,Berekeningen!AC10:AI10,\">0\")","v":0.2},{"v":0.7500000000000001,"d":"75%"},2,"C"]
[null,null,{"$f":"IF(Instellingen!C14=\"\",\"\",Instellingen!C14)","v":"Spaans"},{"v":0.5,"d":"50%"},"","","","","","","","","","","","","","","","","","","","","","","","",{"$f":"IFERROR(AVERAGEIFS(tblKlassecijfers[Score],tblKlassecijfers[Les],Berekeningen!$C11,tblKlassecijfers[Type],Berekeningen!AC$5)*Instellingen!E14,\"\")","v":0.05},{"$f":"IFERROR(AVERAGEIFS(tblKlassecijfers[Score],tblKlassecijfers[Les],Berekeningen!$C11,tblKlassecijfers[Type],Berekeningen!AD$5)*Instellingen!F14,\"\")","v":""},{"$f":"IFERROR(AVERAGEIFS(tblKlassecijfers[Score],tblKlassecijfers[Les],Berekeningen!$C11,tblKlassecijfers[Type],Berekeningen!AE$5)*Instellingen!G14,\"\")","v":""},{"$f":"IFERROR(AVERAGEIFS(tblKlassecijfers[Score],tblKlassecijfers[Les],Berekeningen!$C11,tblKlassecijfers[Type],Berekeningen!AF$5)*Instellingen!H14,\"\")","v":""},{"$f":"IFERROR(AVERAGEIFS(tblKlassecijfers[Score],tblKlassecijfers[Les],Berekeningen!$C11,tblKlassecijfers[Type],Berekeningen!AG$5)*Instellingen!I14,\"\")","v":""},{"$f":"IFERROR(AVERAGEIFS(tblKlassecijfers[Score],tblKlassecijfers[Les],Berekeningen!$C11,tblKlassecijfers[Type],Berekeningen!AH$5)*Instellingen!J14,\"\")","v":""},{"$f":"IFERROR(AVERAGEIFS(tblKlassecijfers[Score],tblKlassecijfers[Les],Berekeningen!$C11,tblKlassecijfers[Type],Berekeningen!AI$5)*Instellingen!K14,\"\")","v":""},0.05,{"$f":"SUMIFS(Instellingen!E14:K14,Berekeningen!AC11:AI11,\">0\")","v":0.1},{"v":0.5,"d":"50%"},0,"F"]
[null,null,{"$f":"IF(Instellingen!C15=\"\",\"\",Instellingen!C15)","v":"Samenstelling"},{"v":0.95,"d":"95%"},"","","","","","","","","","","","","","","","","","","","","","","","",{"$f":"IFERROR(AVERAGEIFS(tblKlassecijfers[Score],tblKlassecijfers[Les],Berekeningen!$C12,tblKlassecijfers[Type],Berekeningen!AC$5)*Instellingen!E15,\"\")","v":""},{"$f":"IFERROR(AVERAGEIFS(tblKlassecijfers[Score],tblKlassecijfers[Les],Berekeningen!$C12,tblKlassecijfers[Type],Berekeningen!AD$5)*Instellingen!F15,\"\")","v":0.1425},{"$f":"IFERROR(AVERAGEIFS(tblKlassecijfers[Score],tblKlassecijfers[Les],Berekeningen!$C12,tblKlassecijfers[Type],Berekeningen!AE$5)*Instellingen!G15,\"\")","v":""},{"$f":"IFERROR(AVERAGEIFS(tblKlassecijfers[Score],tblKlassecijfers[Les],Berekeningen!$C12,tblKlassecijfers[Type],Berekeningen!AF$5)*Instellingen!H15,\"\")","v":""},{"$f":"IFERROR(AVERAGEIFS(tblKlassecijfers[Score],tblKlassecijfers[Les],Berekeningen!$C12,tblKlassecijfers[Type],Berekeningen!AG$5)*Instellingen!I15,\"\")","v":""},{"$f":"IFERROR(AVERAGEIFS(tblKlassecijfers[Score],tblKlassecijfers[Les],Berekeningen!$C12,tblKlassecijfers[Type],Berekeningen!AH$5)*Instellingen!J15,\"\")","v":""},{"$f":"IFERROR(AVERAGEIFS(tblKlassecijfers[Score],tblKlassecijfers[Les],Berekeningen!$C12,tblKlassecijfers[Type],Berekeningen!AI$5)*Instellingen!K15,\"\")","v":""},0.1425,{"$f":"SUMIFS(Instellingen!E15:K15,Berekeningen!AC12:AI12,\">0\")","v":0.15},{"v":0.95,"d":"95%"},4,"A"]
[null,null,{"$f":"IF(Instellingen!C16=\"\",\"\",Instellingen!C16)","v":""},"","","","","","","","","","","","","","","","","","","","","","","","","",{"$f":"IFERROR(AVERAGEIFS(tblKlassecijfers[Score],tblKlassecijfers[Les],Berekeningen!$C13,tblKlassecijfers[Type],Berekeningen!AC$5)*Instellingen!E16,\"\")","v":""},{"$f":"IFERROR(AVERAGEIFS(tblKlassecijfers[Score],tblKlassecijfers[Les],Berekeningen!$C13,tblKlassecijfers[Type],Berekeningen!AD$5)*Instellingen!F16,\"\")","v":""},{"$f":"IFERROR(AVERAGEIFS(tblKlassecijfers[Score],tblKlassecijfers[Les],Berekeningen!$C13,tblKlassecijfers[Type],Berekeningen!AE$5)*Instellingen!G16,\"\")","v":""},{"$f":"IFERROR(AVERAGEIFS(tblKlassecijfers[Score],tblKlassecijfers[Les],Berekeningen!$C13,tblKlassecijfers[Type],Berekeningen!AF$5)*Instellingen!H16,\"\")","v":""},{"$f":"IFERROR(AVERAGEIFS(tblKlassecijfers[Score],tblKlassecijfers[Les],Berekeningen!$C13,tblKlassecijfers[Type],Berekeningen!AG$5)*Instellingen!I16,\"\")","v":""},{"$f":"IFERROR(AVERAGEIFS(tblKlassecijfers[Score],tblKlassecijfers[Les],Berekeningen!$C13,tblKlassecijfers[Type],Berekeningen!AH$5)*Instellingen!J16,\"\")","v":""},{"$f":"IFERROR(AVERAGEIFS(tblKlassecijfers[Score],tblKlassecijfers[Les],Berekeningen!$C13,tblKlassecijfers[Type],Berekeningen!AI$5)*Instellingen!K16,\"\")","v":""},{"$f":"SUM(AC13:AI13)","v":0},{"$f":"SUMIFS(Instellingen!E16:K16,Berekeningen!AC13:AI13,\">0\")","v":0},{"$f":"IFERROR(AJ13/AK13,\"\")","v":""},"",""]
[null,null,{"$f":"IF(Instellingen!C17=\"\",\"\",Instellingen!C17)","v":""},"","","","","","","","","","","","","","","","","","","","","","","","","",{"$f":"IFERROR(AVERAGEIFS(tblKlassecijfers[Score],tblKlassecijfers[Les],Berekeningen!$C14,tblKlassecijfers[Type],Berekeningen!AC$5)*Instellingen!E17,\"\")","v":""},{"$f":"IFERROR(AVERAGEIFS(tblKlassecijfers[Score],tblKlassecijfers[Les],Berekeningen!$C14,tblKlassecijfers[Type],Berekeningen!AD$5)*Instellingen!F17,\"\")","v":""},{"$f":"IFERROR(AVERAGEIFS(tblKlassecijfers[Score],tblKlassecijfers[Les],Berekeningen!$C14,tblKlassecijfers[Type],Berekeningen!AE$5)*Instellingen!G17,\"\")","v":""},{"$f":"IFERROR(AVERAGEIFS(tblKlassecijfers[Score],tblKlassecijfers[Les],Berekeningen!$C14,tblKlassecijfers[Type],Berekeningen!AF$5)*Instellingen!H17,\"\")","v":""},{"$f":"IFERROR(AVERAGEIFS(tblKlassecijfers[Score],tblKlassecijfers[Les],Berekeningen!$C14,tblKlassecijfers[Type],Berekeningen!AG$5)*Instellingen!I17,\"\")","v":""},{"$f":"IFERROR(AVERAGEIFS(tblKlassecijfers[Score],tblKlassecijfers[Les],Berekeningen!$C14,tblKlassecijfers[Type],Berekeningen!AH$5)*Instellingen!J17,\"\")","v":""},{"$f":"IFERROR(AVERAGEIFS(tblKlassecijfers[Score],tblKlassecijfers[Les],Berekeningen!$C14,tblKlassecijfers[Type],Berekeningen!AI$5)*Instellingen!K17,\"\")","v":""},0,{"$f":"SUMIFS(Instellingen!E17:K17,Berekeningen!AC14:AI14,\">0\")","v":0},"","",""]
[null,null,{"$f":"IF(Instellingen!C18=\"\",\"\",Instellingen!C18)","v":""},"","","","","","","","","","","","","","","","","","","","","","","","","",{"$f":"IFERROR(AVERAGEIFS(tblKlassecijfers[Score],tblKlassecijfers[Les],Berekeningen!$C15,tblKlassecijfers[Type],Berekeningen!AC$5)*Instellingen!E18,\"\")","v":""},{"$f":"IFERROR(AVERAGEIFS(tblKlassecijfers[Score],tblKlassecijfers[Les],Berekeningen!$C15,tblKlassecijfers[Type],Berekeningen!AD$5)*Instellingen!F18,\"\")","v":""},{"$f":"IFERROR(AVERAGEIFS(tblKlassecijfers[Score],tblKlassecijfers[Les],Berekeningen!$C15,tblKlassecijfers[Type],Berekeningen!AE$5)*Instellingen!G18,\"\")","v":""},{"$f":"IFERROR(AVERAGEIFS(tblKlassecijfers[Score],tblKlassecijfers[Les],Berekeningen!$C15,tblKlassecijfers[Type],Berekeningen!AF$5)*Instellingen!H18,\"\")","v":""},{"$f":"IFERROR(AVERAGEIFS(tblKlassecijfers[Score],tblKlassecijfers[Les],Berekeningen!$C15,tblKlassecijfers[Type],Berekeningen!AG$5)*Instellingen!I18,\"\")","v":""},{"$f":"IFERROR(AVERAGEIFS(tblKlassecijfers[Score],tblKlassecijfers[Les],Berekeningen!$C15,tblKlassecijfers[Type],Berekeningen!AH$5)*Instellingen!J18,\"\")","v":""},{"$f":"IFERROR(AVERAGEIFS(tblKlassecijfers[Score],tblKlassecijfers[Les],Berekeningen!$C15,tblKlassecijfers[Type],Berekeningen!AI$5)*Instellingen!K18,\"\")","v":""},0,{"$f":"SUMIFS(Instellingen!E18:K18,Berekeningen!AC15:AI15,\">0\")","v":0},"","",""]
[null,null,{"$f":"IF(Instellingen!C19=\"\",\"\",Instellingen!C19)","v":""},"","","","","","","","","","","","","","","","","","","","","","","","","",{"$f":"IFERROR(AVERAGEIFS(tblKlassecijfers[Score],tblKlassecijfers[Les],Berekeningen!$C16,tblKlassecijfers[Type],Berekeningen!AC$5)*Instellingen!E19,\"\")","v":""},{"$f":"IFERROR(AVERAGEIFS(tblKlassecijfers[Score],tblKlassecijfers[Les],Berekeningen!$C16,tblKlassecijfers[Type],Berekeningen!AD$5)*Instellingen!F19,\"\")","v":""},{"$f":"IFERROR(AVERAGEIFS(tblKlassecijfers[Score],tblKlassecijfers[Les],Berekeningen!$C16,tblKlassecijfers[Type],Berekeningen!AE$5)*Instellingen!G19,\"\")","v":""},{"$f":"IFERROR(AVERAGEIFS(tblKlassecijfers[Score],tblKlassecijfers[Les],Berekeningen!$C16,tblKlassecijfers[Type],Berekeningen!AF$5)*Instellingen!H19,\"\")","v":""},{"$f":"IFERROR(AVERAGEIFS(tblKlassecijfers[Score],tblKlassecijfers[Les],Berekeningen!$C16,tblKlassecijfers[Type],Berekeningen!AG$5)*Instellingen!I19,\"\")","v":""},{"$f":"IFERROR(AVERAGEIFS(tblKlassecijfers[Score],tblKlassecijfers[Les],Berekeningen!$C16,tblKlassecijfers[Type],Berekeningen!AH$5)*Instellingen!J19,\"\")","v":""},{"$f":"IFERROR(AVERAGEIFS(tblKlassecijfers[Score],tblKlassecijfers[Les],Berekeningen!$C16,tblKlassecijfers[Type],Berekeningen!AI$5)*Instellingen!K19,\"\")","v":""},0,{"$f":"SUMIFS(Instellingen!E19:K19,Berekeningen!AC16:AI16,\">0\")","v":0},"","",""]
[null,null,{"$f":"IF(Instellingen!C20=\"\",\"\",Instellingen!C20)","v":""},"","","","","","","","","","","","","","","","","","","","","","","","","",{"$f":"IFERROR(AVERAGEIFS(tblKlassecijfers[Score],tblKlassecijfers[Les],Berekeningen!$C17,tblKlassecijfers[Type],Berekeningen!AC$5)*Instellingen!E20,\"\")","v":""},{"$f":"IFERROR(AVERAGEIFS(tblKlassecijfers[Score],tblKlassecijfers[Les],Berekeningen!$C17,tblKlassecijfers[Type],Berekeningen!AD$5)*Instellingen!F20,\"\")","v":""},{"$f":"IFERROR(AVERAGEIFS(tblKlassecijfers[Score],tblKlassecijfers[Les],Berekeningen!$C17,tblKlassecijfers[Type],Berekeningen!AE$5)*Instellingen!G20,\"\")","v":""},{"$f":"IFERROR(AVERAGEIFS(tblKlassecijfers[Score],tblKlassecijfers[Les],Berekeningen!$C17,tblKlassecijfers[Type],Berekeningen!AF$5)*Instellingen!H20,\"\")","v":""},{"$f":"IFERROR(AVERAGEIFS(tblKlassecijfers[Score],tblKlassecijfers[Les],Berekeningen!$C17,tblKlassecijfers[Type],Berekeningen!AG$5)*Instellingen!I20,\"\")","v":""},{"$f":"IFERROR(AVERAGEIFS(tblKlassecijfers[Score],tblKlassecijfers[Les],Berekeningen!$C17,tblKlassecijfers[Type],Berekeningen!AH$5)*Instellingen!J20,\"\")","v":""},{"$f":"IFERROR(AVERAGEIFS(tblKlassecijfers[Score],tblKlassecijfers[Les],Berekeningen!$C17,tblKlassecijfers[Type],Berekeningen!AI$5)*Instellingen!K20,\"\")","v":""},0,{"$f":"SUMIFS(Instellingen!E20:K20,Berekeningen!AC17:AI17,\">0\")","v":0},"","",""]
[null,null,{"$f":"IF(Instellingen!C21=\"\",\"\",Instellingen!C21)","v":""},"","","","","","","","","","","","","","","","","","","","","","","","","",{"$f":"IFERROR(AVERAGEIFS(tblKlassecijfers[Score],tblKlassecijfers[Les],Berekeningen!$C18,tblKlassecijfers[Type],Berekeningen!AC$5)*Instellingen!E21,\"\")","v":""},{"$f":"IFERROR(AVERAGEIFS(tblKlassecijfers[Score],tblKlassecijfers[Les],Berekeningen!$C18,tblKlassecijfers[Type],Berekeningen!AD$5)*Instellingen!F21,\"\")","v":""},{"$f":"IFERROR(AVERAGEIFS(tblKlassecijfers[Score],tblKlassecijfers[Les],Berekeningen!$C18,tblKlassecijfers[Type],Berekeningen!AE$5)*Instellingen!G21,\"\")","v":""},{"$f":"IFERROR(AVERAGEIFS(tblKlassecijfers[Score],tblKlassecijfers[Les],Berekeningen!$C18,tblKlassecijfers[Type],Berekeningen!AF$5)*Instellingen!H21,\"\")","v":""},{"$f":"IFERROR(AVERAGEIFS(tblKlassecijfers[Score],tblKlassecijfers[Les],Berekeningen!$C18,tblKlassecijfers[Type],Berekeningen!AG$5)*Instellingen!I21,\"\")","v":""},{"$f":"IFERROR(AVERAGEIFS(tblKlassecijfers[Score],tblKlassecijfers[Les],Berekeningen!$C18,tblKlassecijfers[Type],Berekeningen!AH$5)*Instellingen!J21,\"\")","v":""},{"$f":"IFERROR(AVERAGEIFS(tblKlassecijfers[Score],tblKlassecijfers[Les],Berekeningen!$C18,tblKlassecijfers[Type],Berekeningen!AI$5)*Instellingen!K21,\"\")","v":""},0,{"$f":"SUMIFS(Instellingen!E21:K21,Berekeningen!AC18:AI18,\">0\")","v":0},"","",""]
[null,null,{"$f":"IF(Instellingen!C22=\"\",\"\",Instellingen!C22)","v":""},"","","","","","","","","","","","","","","","","","","","","","","","","",{"$f":"IFERROR(AVERAGEIFS(tblKlassecijfers[Score],tblKlassecijfers[Les],Berekeningen!$C19,tblKlassecijfers[Type],Berekeningen!AC$5)*Instellingen!E22,\"\")","v":""},{"$f":"IFERROR(AVERAGEIFS(tblKlassecijfers[Score],tblKlassecijfers[Les],Berekeningen!$C19,tblKlassecijfers[Type],Berekeningen!AD$5)*Instellingen!F22,\"\")","v":""},{"$f":"IFERROR(AVERAGEIFS(tblKlassecijfers[Score],tblKlassecijfers[Les],Berekeningen!$C19,tblKlassecijfers[Type],Berekeningen!AE$5)*Instellingen!G22,\"\")","v":""},{"$f":"IFERROR(AVERAGEIFS(tblKlassecijfers[Score],tblKlassecijfers[Les],Berekeningen!$C19,tblKlassecijfers[Type],Berekeningen!AF$5)*Instellingen!H22,\"\")","v":""},{"$f":"IFERROR(AVERAGEIFS(tblKlassecijfers[Score],tblKlassecijfers[Les],Berekeningen!$C19,tblKlassecijfers[Type],Berekeningen!AG$5)*Instellingen!I22,\"\")","v":""},{"$f":"IFERROR(AVERAGEIFS(tblKlassecijfers[Score],tblKlassecijfers[Les],Berekeningen!$C19,tblKlassecijfers[Type],Berekeningen!AH$5)*Instellingen!J22,\"\")","v":""},{"$f":"IFERROR(AVERAGEIFS(tblKlassecijfers[Score],tblKlassecijfers[Les],Berekeningen!$C19,tblKlassecijfers[Type],Berekeningen!AI$5)*Instellingen!K22,\"\")","v":""},0,{"$f":"SUMIFS(Instellingen!E22:K22,Berekeningen!AC19:AI19,\">0\")","v":0},"","",""]
[null,null,{"$f":"IF(Instellingen!C23=\"\",\"\",Instellingen!C23)","v":""},"","","","","","","","","","","","","","","","","","","","","","","","","",{"$f":"IFERROR(AVERAGEIFS(tblKlassecijfers[Score],tblKlassecijfers[Les],Berekeningen!$C20,tblKlassecijfers[Type],Berekeningen!AC$5)*Instellingen!E23,\"\")","v":""},{"$f":"IFERROR(AVERAGEIFS(tblKlassecijfers[Score],tblKlassecijfers[Les],Berekeningen!$C20,tblKlassecijfers[Type],Berekeningen!AD$5)*Instellingen!F23,\"\")","v":""},{"$f":"IFERROR(AVERAGEIFS(tblKlassecijfers[Score],tblKlassecijfers[Les],Berekeningen!$C20,tblKlassecijfers[Type],Berekeningen!AE$5)*Instellingen!G23,\"\")","v":""},{"$f":"IFERROR(AVERAGEIFS(tblKlassecijfers[Score],tblKlassecijfers[Les],Berekeningen!$C20,tblKlassecijfers[Type],Berekeningen!AF$5)*Instellingen!H23,\"\")","v":""},{"$f":"IFERROR(AVERAGEIFS(tblKlassecijfers[Score],tblKlassecijfers[Les],Berekeningen!$C20,tblKlassecijfers[Type],Berekeningen!AG$5)*Instellingen!I23,\"\")","v":""},{"$f":"IFERROR(AVERAGEIFS(tblKlassecijfers[Score],tblKlassecijfers[Les],Berekeningen!$C20,tblKlassecijfers[Type],Berekeningen!AH$5)*Instellingen!J23,\"\")","v":""},{"$f":"IFERROR(AVERAGEIFS(tblKlassecijfers[Score],tblKlassecijfers[Les],Berekeningen!$C20,tblKlassecijfers[Type],Berekeningen!AI$5)*Instellingen!K23,\"\")","v":""},0,{"$f":"SUMIFS(Instellingen!E23:K23,Berekeningen!AC20:AI20,\">0\")","v":0},"","",""]
[null,null,{"$f":"IF(Instellingen!C24=\"\",\"\",Instellingen!C24)","v":""},"","","","","","","","","","","","","","","","","","","","","","","","","",{"$f":"IFERROR(AVERAGEIFS(tblKlassecijfers[Score],tblKlassecijfers[Les],Berekeningen!$C21,tblKlassecijfers[Type],Berekeningen!AC$5)*Instellingen!E24,\"\")","v":""},{"$f":"IFERROR(AVERAGEIFS(tblKlassecijfers[Score],tblKlassecijfers[Les],Berekeningen!$C21,tblKlassecijfers[Type],Berekeningen!AD$5)*Instellingen!F24,\"\")","v":""},{"$f":"IFERROR(AVERAGEIFS(tblKlassecijfers[Score],tblKlassecijfers[Les],Berekeningen!$C21,tblKlassecijfers[Type],Berekeningen!AE$5)*Instellingen!G24,\"\")","v":""},{"$f":"IFERROR(AVERAGEIFS(tblKlassecijfers[Score],tblKlassecijfers[Les],Berekeningen!$C21,tblKlassecijfers[Type],Berekeningen!AF$5)*Instellingen!H24,\"\")","v":""},{"$f":"IFERROR(AVERAGEIFS(tblKlassecijfers[Score],tblKlassecijfers[Les],Berekeningen!$C21,tblKlassecijfers[Type],Berekeningen!AG$5)*Instellingen!I24,\"\")","v":""},{"$f":"IFERROR(AVERAGEIFS(tblKlassecijfers[Score],tblKlassecijfers[Les],Berekeningen!$C21,tblKlassecijfers[Type],Berekeningen!AH$5)*Instellingen!J24,\"\")","v":""},{"$f":"IFERROR(AVERAGEIFS(tblKlassecijfers[Score],tblKlassecijfers[Les],Berekeningen!$C21,tblKlassecijfers[Type],Berekeningen!AI$5)*Instellingen!K24,\"\")","v":""},0,{"$f":"SUMIFS(Instellingen!E24:K24,Berekeningen!AC21:AI21,\">0\")","v":0},"","",""]
[null,null,{"$f":"IF(Instellingen!C25=\"\",\"\",Instellingen!C25)","v":""},"","","","","","","","","","","","","","","","","","","","","","","","","",{"$f":"IFERROR(AVERAGEIFS(tblKlassecijfers[Score],tblKlassecijfers[Les],Berekeningen!$C22,tblKlassecijfers[Type],Berekeningen!AC$5)*Instellingen!E25,\"\")","v":""},{"$f":"IFERROR(AVERAGEIFS(tblKlassecijfers[Score],tblKlassecijfers[Les],Berekeningen!$C22,tblKlassecijfers[Type],Berekeningen!AD$5)*Instellingen!F25,\"\")","v":""},{"$f":"IFERROR(AVERAGEIFS(tblKlassecijfers[Score],tblKlassecijfers[Les],Berekeningen!$C22,tblKlassecijfers[Type],Berekeningen!AE$5)*Instellingen!G25,\"\")","v":""},{"$f":"IFERROR(AVERAGEIFS(tblKlassecijfers[Score],tblKlassecijfers[Les],Berekeningen!$C22,tblKlassecijfers[Type],Berekeningen!AF$5)*Instellingen!H25,\"\")","v":""},{"$f":"IFERROR(AVERAGEIFS(tblKlassecijfers[Score],tblKlassecijfers[Les],Berekeningen!$C22,tblKlassecijfers[Type],Berekeningen!AG$5)*Instellingen!I25,\"\")","v":""},{"$f":"IFERROR(AVERAGEIFS(tblKlassecijfers[Score],tblKlassecijfers[Les],Berekeningen!$C22,tblKlassecijfers[Type],Berekeningen!AH$5)*Instellingen!J25,\"\")","v":""},{"$f":"IFERROR(AVERAGEIFS(tblKlassecijfers[Score],tblKlassecijfers[Les],Berekeningen!$C22,tblKlassecijfers[Type],Berekeningen!AI$5)*Instellingen!K25,\"\")","v":""},0,{"$f":"SUMIFS(Instellingen!E25:K25,Berekeningen!AC22:AI22,\">0\")","v":0},"","",""]
[null,null,{"$f":"IF(Instellingen!C26=\"\",\"\",Instellingen!C26)","v":""},"","","","","","","","","","","","","","","","","","","","","","","","","",{"$f":"IFERROR(AVERAGEIFS(tblKlassecijfers[Score],tblKlassecijfers[Les],Berekeningen!$C23,tblKlassecijfers[Type],Berekeningen!AC$5)*Instellingen!E26,\"\")","v":""},{"$f":"IFERROR(AVERAGEIFS(tblKlassecijfers[Score],tblKlassecijfers[Les],Berekeningen!$C23,tblKlassecijfers[Type],Berekeningen!AD$5)*Instellingen!F26,\"\")","v":""},{"$f":"IFERROR(AVERAGEIFS(tblKlassecijfers[Score],tblKlassecijfers[Les],Berekeningen!$C23,tblKlassecijfers[Type],Berekeningen!AE$5)*Instellingen!G26,\"\")","v":""},{"$f":"IFERROR(AVERAGEIFS(tblKlassecijfers[Score],tblKlassecijfers[Les],Berekeningen!$C23,tblKlassecijfers[Type],Berekeningen!AF$5)*Instellingen!H26,\"\")","v":""},{"$f":"IFERROR(AVERAGEIFS(tblKlassecijfers[Score],tblKlassecijfers[Les],Berekeningen!$C23,tblKlassecijfers[Type],Berekeningen!AG$5)*Instellingen!I26,\"\")","v":""},{"$f":"IFERROR(AVERAGEIFS(tblKlassecijfers[Score],tblKlassecijfers[Les],Berekeningen!$C23,tblKlassecijfers[Type],Berekeningen!AH$5)*Instellingen!J26,\"\")","v":""},{"$f":"IFERROR(AVERAGEIFS(tblKlassecijfers[Score],tblKlassecijfers[Les],Berekeningen!$C23,tblKlassecijfers[Type],Berekeningen!AI$5)*Instellingen!K26,\"\")","v":""},0,{"$f":"SUMIFS(Instellingen!E26:K26,Berekeningen!AC23:AI23,\">0\")","v":0},"","",""]
[null,null,{"$f":"IF(Instellingen!C27=\"\",\"\",Instellingen!C27)","v":""},"","","","","","","","","","","","","","","","","","","","","","","","","",{"$f":"IFERROR(AVERAGEIFS(tblKlassecijfers[Score],tblKlassecijfers[Les],Berekeningen!$C24,tblKlassecijfers[Type],Berekeningen!AC$5)*Instellingen!E27,\"\")","v":""},{"$f":"IFERROR(AVERAGEIFS(tblKlassecijfers[Score],tblKlassecijfers[Les],Berekeningen!$C24,tblKlassecijfers[Type],Berekeningen!AD$5)*Instellingen!F27,\"\")","v":""},{"$f":"IFERROR(AVERAGEIFS(tblKlassecijfers[Score],tblKlassecijfers[Les],Berekeningen!$C24,tblKlassecijfers[Type],Berekeningen!AE$5)*Instellingen!G27,\"\")","v":""},{"$f":"IFERROR(AVERAGEIFS(tblKlassecijfers[Score],tblKlassecijfers[Les],Berekeningen!$C24,tblKlassecijfers[Type],Berekeningen!AF$5)*Instellingen!H27,\"\")","v":""},{"$f":"IFERROR(AVERAGEIFS(tblKlassecijfers[Score],tblKlassecijfers[Les],Berekeningen!$C24,tblKlassecijfers[Type],Berekeningen!AG$5)*Instellingen!I27,\"\")","v":""},{"$f":"IFERROR(AVERAGEIFS(tblKlassecijfers[Score],tblKlassecijfers[Les],Berekeningen!$C24,tblKlassecijfers[Type],Berekeningen!AH$5)*Instellingen!J27,\"\")","v":""},{"$f":"IFERROR(AVERAGEIFS(tblKlassecijfers[Score],tblKlassecijfers[Les],Berekeningen!$C24,tblKlassecijfers[Type],Berekeningen!AI$5)*Instellingen!K27,\"\")","v":""},0,{"$f":"SUMIFS(Instellingen!E27:K27,Berekeningen!AC24:AI24,\">0\")","v":0},"","",""]
[null,null,{"$f":"IF(Instellingen!C28=\"\",\"\",Instellingen!C28)","v":""},"","","","","","","","","","","","","","","","","","","","","","","","","",{"$f":"IFERROR(AVERAGEIFS(tblKlassecijfers[Score],tblKlassecijfers[Les],Berekeningen!$C25,tblKlassecijfers[Type],Berekeningen!AC$5)*Instellingen!E28,\"\")","v":""},{"$f":"IFERROR(AVERAGEIFS(tblKlassecijfers[Score],tblKlassecijfers[Les],Berekeningen!$C25,tblKlassecijfers[Type],Berekeningen!AD$5)*Instellingen!F28,\"\")","v":""},{"$f":"IFERROR(AVERAGEIFS(tblKlassecijfers[Score],tblKlassecijfers[Les],Berekeningen!$C25,tblKlassecijfers[Type],Berekeningen!AE$5)*Instellingen!G28,\"\")","v":""},{"$f":"IFERROR(AVERAGEIFS(tblKlassecijfers[Score],tblKlassecijfers[Les],Berekeningen!$C25,tblKlassecijfers[Type],Berekeningen!AF$5)*Instellingen!H28,\"\")","v":""},{"$f":"IFERROR(AVERAGEIFS(tblKlassecijfers[Score],tblKlassecijfers[Les],Berekeningen!$C25,tblKlassecijfers[Type],Berekeningen!AG$5)*Instellingen!I28,\"\")","v":""},{"$f":"IFERROR(AVERAGEIFS(tblKlassecijfers[Score],tblKlassecijfers[Les],Berekeningen!$C25,tblKlassecijfers[Type],Berekeningen!AH$5)*Instellingen!J28,\"\")","v":""},{"$f":"IFERROR(AVERAGEIFS(tblKlassecijfers[Score],tblKlassecijfers[Les],Berekeningen!$C25,tblKlassecijfers[Type],Berekeningen!AI$5)*Instellingen!K28,\"\")","v":""},0,{"$f":"SUMIFS(Instellingen!E28:K28,Berekeningen!AC25:AI25,\">0\")","v":0},"","",""]
[null,null,{"$f":"IF(Instellingen!C29=\"\",\"\",Instellingen!C29)","v":""},"","","","","","","","","","","","","","","","","","","","","","","","","",{"$f":"IFERROR(AVERAGEIFS(tblKlassecijfers[Score],tblKlassecijfers[Les],Berekeningen!$C26,tblKlassecijfers[Type],Berekeningen!AC$5)*Instellingen!E29,\"\")","v":""},{"$f":"IFERROR(AVERAGEIFS(tblKlassecijfers[Score],tblKlassecijfers[Les],Berekeningen!$C26,tblKlassecijfers[Type],Berekeningen!AD$5)*Instellingen!F29,\"\")","v":""},{"$f":"IFERROR(AVERAGEIFS(tblKlassecijfers[Score],tblKlassecijfers[Les],Berekeningen!$C26,tblKlassecijfers[Type],Berekeningen!AE$5)*Instellingen!G29,\"\")","v":""},{"$f":"IFERROR(AVERAGEIFS(tblKlassecijfers[Score],tblKlassecijfers[Les],Berekeningen!$C26,tblKlassecijfers[Type],Berekeningen!AF$5)*Instellingen!H29,\"\")","v":""},{"$f":"IFERROR(AVERAGEIFS(tblKlassecijfers[Score],tblKlassecijfers[Les],Berekeningen!$C26,tblKlassecijfers[Type],Berekeningen!AG$5)*Instellingen!I29,\"\")","v":""},{"$f":"IFERROR(AVERAGEIFS(tblKlassecijfers[Score],tblKlassecijfers[Les],Berekeningen!$C26,tblKlassecijfers[Type],Berekeningen!AH$5)*Instellingen!J29,\"\")","v":""},{"$f":"IFERROR(AVERAGEIFS(tblKlassecijfers[Score],tblKlassecijfers[Les],Berekeningen!$C26,tblKlassecijfers[Type],Berekeningen!AI$5)*Instellingen!K29,\"\")","v":""},0,{"$f":"SUMIFS(Instellingen!E29:K29,Berekeningen!AC26:AI26,\">0\")","v":0},"","",""]
[null,null,{"$f":"IF(Instellingen!C30=\"\",\"\",Instellingen!C30)","v":""},"","","","","","","","","","","","","","","","","","","","","","","","","",{"$f":"IFERROR(AVERAGEIFS(tblKlassecijfers[Score],tblKlassecijfers[Les],Berekeningen!$C27,tblKlassecijfers[Type],Berekeningen!AC$5)*Instellingen!E30,\"\")","v":""},{"$f":"IFERROR(AVERAGEIFS(tblKlassecijfers[Score],tblKlassecijfers[Les],Berekeningen!$C27,tblKlassecijfers[Type],Berekeningen!AD$5)*Instellingen!F30,\"\")","v":""},{"$f":"IFERROR(AVERAGEIFS(tblKlassecijfers[Score],tblKlassecijfers[Les],Berekeningen!$C27,tblKlassecijfers[Type],Berekeningen!AE$5)*Instellingen!G30,\"\")","v":""},{"$f":"IFERROR(AVERAGEIFS(tblKlassecijfers[Score],tblKlassecijfers[Les],Berekeningen!$C27,tblKlassecijfers[Type],Berekeningen!AF$5)*Instellingen!H30,\"\")","v":""},{"$f":"IFERROR(AVERAGEIFS(tblKlassecijfers[Score],tblKlassecijfers[Les],Berekeningen!$C27,tblKlassecijfers[Type],Berekeningen!AG$5)*Instellingen!I30,\"\")","v":""},{"$f":"IFERROR(AVERAGEIFS(tblKlassecijfers[Score],tblKlassecijfers[Les],Berekeningen!$C27,tblKlassecijfers[Type],Berekeningen!AH$5)*Instellingen!J30,\"\")","v":""},{"$f":"IFERROR(AVERAGEIFS(tblKlassecijfers[Score],tblKlassecijfers[Les],Berekeningen!$C27,tblKlassecijfers[Type],Berekeningen!AI$5)*Instellingen!K30,\"\")","v":""},0,{"$f":"SUMIFS(Instellingen!E30:K30,Berekeningen!AC27:AI27,\">0\")","v":0},"","",""]
[null,null,{"$f":"IF(Instellingen!C31=\"\",\"\",Instellingen!C31)","v":""},"","","","","","","","","","","","","","","","","","","","","","","","","",{"$f":"IFERROR(AVERAGEIFS(tblKlassecijfers[Score],tblKlassecijfers[Les],Berekeningen!$C28,tblKlassecijfers[Type],Berekeningen!AC$5)*Instellingen!E31,\"\")","v":""},{"$f":"IFERROR(AVERAGEIFS(tblKlassecijfers[Score],tblKlassecijfers[Les],Berekeningen!$C28,tblKlassecijfers[Type],Berekeningen!AD$5)*Instellingen!F31,\"\")","v":""},{"$f":"IFERROR(AVERAGEIFS(tblKlassecijfers[Score],tblKlassecijfers[Les],Berekeningen!$C28,tblKlassecijfers[Type],Berekeningen!AE$5)*Instellingen!G31,\"\")","v":""},{"$f":"IFERROR(AVERAGEIFS(tblKlassecijfers[Score],tblKlassecijfers[Les],Berekeningen!$C28,tblKlassecijfers[Type],Berekeningen!AF$5)*Instellingen!H31,\"\")","v":""},{"$f":"IFERROR(AVERAGEIFS(tblKlassecijfers[Score],tblKlassecijfers[Les],Berekeningen!$C28,tblKlassecijfers[Type],Berekeningen!AG$5)*Instellingen!I31,\"\")","v":""},{"$f":"IFERROR(AVERAGEIFS(tblKlassecijfers[Score],tblKlassecijfers[Les],Berekeningen!$C28,tblKlassecijfers[Type],Berekeningen!AH$5)*Instellingen!J31,\"\")","v":""},{"$f":"IFERROR(AVERAGEIFS(tblKlassecijfers[Score],tblKlassecijfers[Les],Berekeningen!$C28,tblKlassecijfers[Type],Berekeningen!AI$5)*Instellingen!K31,\"\")","v":""},0,{"$f":"SUMIFS(Instellingen!E31:K31,Berekeningen!AC28:AI28,\">0\")","v":0},"","",""]
[null,null,{"$f":"IF(Instellingen!C32=\"\",\"\",Instellingen!C32)","v":""},"","","","","","","","","","","","","","","","","","","","","","","","","",{"$f":"IFERROR(AVERAGEIFS(tblKlassecijfers[Score],tblKlassecijfers[Les],Berekeningen!$C29,tblKlassecijfers[Type],Berekeningen!AC$5)*Instellingen!E32,\"\")","v":""},{"$f":"IFERROR(AVERAGEIFS(tblKlassecijfers[Score],tblKlassecijfers[Les],Berekeningen!$C29,tblKlassecijfers[Type],Berekeningen!AD$5)*Instellingen!F32,\"\")","v":""},{"$f":"IFERROR(AVERAGEIFS(tblKlassecijfers[Score],tblKlassecijfers[Les],Berekeningen!$C29,tblKlassecijfers[Type],Berekeningen!AE$5)*Instellingen!G32,\"\")","v":""},{"$f":"IFERROR(AVERAGEIFS(tblKlassecijfers[Score],tblKlassecijfers[Les],Berekeningen!$C29,tblKlassecijfers[Type],Berekeningen!AF$5)*Instellingen!H32,\"\")","v":""},{"$f":"IFERROR(AVERAGEIFS(tblKlassecijfers[Score],tblKlassecijfers[Les],Berekeningen!$C29,tblKlassecijfers[Type],Berekeningen!AG$5)*Instellingen!I32,\"\")","v":""},{"$f":"IFERROR(AVERAGEIFS(tblKlassecijfers[Score],tblKlassecijfers[Les],Berekeningen!$C29,tblKlassecijfers[Type],Berekeningen!AH$5)*Instellingen!J32,\"\")","v":""},{"$f":"IFERROR(AVERAGEIFS(tblKlassecijfers[Score],tblKlassecijfers[Les],Berekeningen!$C29,tblKlassecijfers[Type],Berekeningen!AI$5)*Instellingen!K32,\"\")","v":""},0,{"$f":"SUMIFS(Instellingen!E32:K32,Berekeningen!AC29:AI29,\">0\")","v":0},"","",""]
[null,null,{"$f":"IF(Instellingen!C33=\"\",\"\",Instellingen!C33)","v":""},"","","","","","","","","","","","","","","","","","","","","","","","","",{"$f":"IFERROR(AVERAGEIFS(tblKlassecijfers[Score],tblKlassecijfers[Les],Berekeningen!$C30,tblKlassecijfers[Type],Berekeningen!AC$5)*Instellingen!E33,\"\")","v":""},{"$f":"IFERROR(AVERAGEIFS(tblKlassecijfers[Score],tblKlassecijfers[Les],Berekeningen!$C30,tblKlassecijfers[Type],Berekeningen!AD$5)*Instellingen!F33,\"\")","v":""},{"$f":"IFERROR(AVERAGEIFS(tblKlassecijfers[Score],tblKlassecijfers[Les],Berekeningen!$C30,tblKlassecijfers[Type],Berekeningen!AE$5)*Instellingen!G33,\"\")","v":""},{"$f":"IFERROR(AVERAGEIFS(tblKlassecijfers[Score],tblKlassecijfers[Les],Berekeningen!$C30,tblKlassecijfers[Type],Berekeningen!AF$5)*Instellingen!H33,\"\")","v":""},{"$f":"IFERROR(AVERAGEIFS(tblKlassecijfers[Score],tblKlassecijfers[Les],Berekeningen!$C30,tblKlassecijfers[Type],Berekeningen!AG$5)*Instellingen!I33,\"\")","v":""},{"$f":"IFERROR(AVERAGEIFS(tblKlassecijfers[Score],tblKlassecijfers[Les],Berekeningen!$C30,tblKlassecijfers[Type],Berekeningen!AH$5)*Instellingen!J33,\"\")","v":""},{"$f":"IFERROR(AVERAGEIFS(tblKlassecijfers[Score],tblKlassecijfers[Les],Berekeningen!$C30,tblKlassecijfers[Type],Berekeningen!AI$5)*Instellingen!K33,\"\")","v":""},0,{"$f":"SUMIFS(Instellingen!E33:K33,Berekeningen!AC30:AI30,\">0\")","v":0},"","",""]
[]
[]
[null,1,{"$f":"'Score bijhouden'!C4&COUNTIF('Score bijhouden'!$C$4:C4,'Score bijhouden'!C4)","v":"Modern Frans1"}]
[null,2,{"$f":"'Score bijhouden'!C5&COUNTIF('Score bijhouden'!$C$4:C5,'Score bijhouden'!C5)","v":"Geavanceerde programmering in Java1"}]
[null,3,{"$f":"'Score bijhouden'!C6&COUNTIF('Score bijhouden'!$C$4:C6,'Score bijhouden'!C6)","v":"Spaans1"}]
[null,4,{"$f":"'Score bijhouden'!C7&COUNTIF('Score bijhouden'!$C$4:C7,'Score bijhouden'!C7)","v":"Theoretische natuurkunde1"}]
[null,5,{"$f":"'Score bijhouden'!C8&COUNTIF('Score bijhouden'!$C$4:C8,'Score bijhouden'!C8)","v":"Modern Frans2"}]
[null,6,{"$f":"'Score bijhouden'!C9&COUNTIF('Score bijhouden'!$C$4:C9,'Score bijhouden'!C9)","v":"Modern Frans3"}]
[null,7,{"$f":"'Score bijhouden'!C10&COUNTIF('Score bijhouden'!$C$4:C10,'Score bijhouden'!C10)","v":"Samenstelling1"}]
[null,8,{"$f":"'Score bijhouden'!C11&COUNTIF('Score bijhouden'!$C$4:C11,'Score bijhouden'!C11)","v":"Wiskunde 11"}]
[null,9,{"$f":"'Score bijhouden'!C12&COUNTIF('Score bijhouden'!$C$4:C12,'Score bijhouden'!C12)","v":"Wiskunde 21"}]
[null,10,{"$f":"'Score bijhouden'!C13&COUNTIF('Score bijhouden'!$C$4:C13,'Score bijhouden'!C13)","v":"Wiskunde 12"}]
[null,11,{"$f":"'Score bijhouden'!C14&COUNTIF('Score bijhouden'!$C$4:C14,'Score bijhouden'!C14)","v":"Wiskunde 22"}]
[null,12,{"$f":"'Score bijhouden'!C15&COUNTIF('Score bijhouden'!$C$4:C15,'Score bijhouden'!C15)","v":"0"}]
[null,13,{"$f":"'Score bijhouden'!C16&COUNTIF('Score bijhouden'!$C$4:C16,'Score bijhouden'!C16)","v":"0"}]
[null,14,{"$f":"'Score bijhouden'!C17&COUNTIF('Score bijhouden'!$C$4:C17,'Score bijhouden'!C17)","v":"0"}]
[null,15,{"$f":"'Score bijhouden'!C18&COUNTIF('Score bijhouden'!$C$4:C18,'Score bijhouden'!C18)","v":"0"}]
[null,16,{"$f":"'Score bijhouden'!C19&COUNTIF('Score bijhouden'!$C$4:C19,'Score bijhouden'!C19)","v":"0"}]
[null,17,{"$f":"'Score bijhouden'!C20&COUNTIF('Score bijhouden'!$C$4:C20,'Score bijhouden'!C20)","v":"0"}]
[null,18,{"$f":"'Score bijhouden'!C21&COUNTIF('Score bijhouden'!$C$4:C21,'Score bijhouden'!C21)","v":"0"}]
[null,19,{"$f":"'Score bijhouden'!C22&COUNTIF('Score bijhouden'!$C$4:C22,'Score bijhouden'!C22)","v":"0"}]
[null,20,{"$f":"'Score bijhouden'!C23&COUNTIF('Score bijhouden'!$C$4:C23,'Score bijhouden'!C23)","v":"0"}]
[null,21,{"$f":"'Score bijhouden'!C24&COUNTIF('Score bijhouden'!$C$4:C24,'Score bijhouden'!C24)","v":"0"}]
[null,22,{"$f":"'Score bijhouden'!C25&COUNTIF('Score bijhouden'!$C$4:C25,'Score bijhouden'!C25)","v":"0"}]
[null,23,{"$f":"'Score bijhouden'!C26&COUNTIF('Score bijhouden'!$C$4:C26,'Score bijhouden'!C26)","v":"0"}]
[null,24,{"$f":"'Score bijhouden'!C27&COUNTIF('Score bijhouden'!$C$4:C27,'Score bijhouden'!C27)","v":"0"}]
[null,25,{"$f":"'Score bijhouden'!C28&COUNTIF('Score bijhouden'!$C$4:C28,'Score bijhouden'!C28)","v":"0"}]
[null,26,{"$f":"'Score bijhouden'!C29&COUNTIF('Score bijhouden'!$C$4:C29,'Score bijhouden'!C29)","v":"0"}]
[null,27,{"$f":"'Score bijhouden'!C30&COUNTIF('Score bijhouden'!$C$4:C30,'Score bijhouden'!C30)","v":"0"}]
[null,28,{"$f":"'Score bijhouden'!C31&COUNTIF('Score bijhouden'!$C$4:C31,'Score bijhouden'!C31)","v":"0"}]
[null,29,{"$f":"'Score bijhouden'!C32&COUNTIF('Score bijhouden'!$C$4:C32,'Score bijhouden'!C32)","v":"0"}]
[null,30,{"$f":"'Score bijhouden'!C33&COUNTIF('Score bijhouden'!$C$4:C33,'Score bijhouden'!C33)","v":"0"}]
[null,31,{"$f":"'Score bijhouden'!C34&COUNTIF('Score bijhouden'!$C$4:C34,'Score bijhouden'!C34)","v":"0"}]
[null,32,{"$f":"'Score bijhouden'!C35&COUNTIF('Score bijhouden'!$C$4:C35,'Score bijhouden'!C35)","v":"0"}]
[null,33,{"$f":"'Score bijhouden'!C36&COUNTIF('Score bijhouden'!$C$4:C36,'Score bijhouden'!C36)","v":"0"}]
[null,34,{"$f":"'Score bijhouden'!C37&COUNTIF('Score bijhouden'!$C$4:C37,'Score bijhouden'!C37)","v":"0"}]
[null,35,{"$f":"'Score bijhouden'!C38&COUNTIF('Score bijhouden'!$C$4:C38,'Score bijhouden'!C38)","v":"0"}]
[null,36,{"$f":"'Score bijhouden'!C39&COUNTIF('Score bijhouden'!$C$4:C39,'Score bijhouden'!C39)","v":"0"}]
[null,37,{"$f":"'Score bijhouden'!C40&COUNTIF('Score bijhouden'!$C$4:C40,'Score bijhouden'!C40)","v":"0"}]
[null,38,{"$f":"'Score bijhouden'!C41&COUNTIF('Score bijhouden'!$C$4:C41,'Score bijhouden'!C41)","v":"0"}]
[null,39,{"$f":"'Score bijhouden'!C42&COUNTIF('Score bijhouden'!$C$4:C42,'Score bijhouden'!C42)","v":"0"}]
[null,40,{"$f":"'Score bijhouden'!C43&COUNTIF('Score bijhouden'!$C$4:C43,'Score bijhouden'!C43)","v":"0"}]
[null,41,{"$f":"'Score bijhouden'!C44&COUNTIF('Score bijhouden'!$C$4:C44,'Score bijhouden'!C44)","v":"0"}]
[null,42,{"$f":"'Score bijhouden'!C45&COUNTIF('Score bijhouden'!$C$4:C45,'Score bijhouden'!C45)","v":"0"}]
[null,43,{"$f":"'Score bijhouden'!C46&COUNTIF('Score bijhouden'!$C$4:C46,'Score bijhouden'!C46)","v":"0"}]
[null,44,{"$f":"'Score bijhouden'!C47&COUNTIF('Score bijhouden'!$C$4:C47,'Score bijhouden'!C47)","v":"0"}]
[null,45,{"$f":"'Score bijhouden'!C48&COUNTIF('Score bijhouden'!$C$4:C48,'Score bijhouden'!C48)","v":"0"}]
[null,46,{"$f":"'Score bijhouden'!C49&COUNTIF('Score bijhouden'!$C$4:C49,'Score bijhouden'!C49)","v":"0"}]
[null,47,{"$f":"'Score bijhouden'!C50&COUNTIF('Score bijhouden'!$C$4:C50,'Score bijhouden'!C50)","v":"0"}]
[null,48,{"$f":"'Score bijhouden'!C51&COUNTIF('Score bijhouden'!$C$4:C51,'Score bijhouden'!C51)","v":"0"}]
[null,49,{"$f":"'Score bijhouden'!C52&COUNTIF('Score bijhouden'!$C$4:C52,'Score bijhouden'!C52)","v":"0"}]
[null,50,{"$f":"'Score bijhouden'!C53&COUNTIF('Score bijhouden'!$C$4:C53,'Score bijhouden'!C53)","v":"0"}]
[null,51,{"$f":"'Score bijhouden'!C54&COUNTIF('Score bijhouden'!$C$4:C54,'Score bijhouden'!C54)","v":"0"}]
[null,52,{"$f":"'Score bijhouden'!C55&COUNTIF('Score bijhouden'!$C$4:C55,'Score bijhouden'!C55)","v":"0"}]
[null,53,{"$f":"'Score bijhouden'!C56&COUNTIF('Score bijhouden'!$C$4:C56,'Score bijhouden'!C56)","v":"0"}]
[null,54,{"$f":"'Score bijhouden'!C57&COUNTIF('Score bijhouden'!$C$4:C57,'Score bijhouden'!C57)","v":"0"}]
[null,55,{"$f":"'Score bijhouden'!C58&COUNTIF('Score bijhouden'!$C$4:C58,'Score bijhouden'!C58)","v":"0"}]
[null,56,{"$f":"'Score bijhouden'!C59&COUNTIF('Score bijhouden'!$C$4:C59,'Score bijhouden'!C59)","v":"0"}]
[null,57,{"$f":"'Score bijhouden'!C60&COUNTIF('Score bijhouden'!$C$4:C60,'Score bijhouden'!C60)","v":"0"}]
[null,58,{"$f":"'Score bijhouden'!C61&COUNTIF('Score bijhouden'!$C$4:C61,'Score bijhouden'!C61)","v":"0"}]
[null,59,{"$f":"'Score bijhouden'!C62&COUNTIF('Score bijhouden'!$C$4:C62,'Score bijhouden'!C62)","v":"0"}]
[null,60,{"$f":"'Score bijhouden'!C63&COUNTIF('Score bijhouden'!$C$4:C63,'Score bijhouden'!C63)","v":"0"}]
[null,61,{"$f":"'Score bijhouden'!C64&COUNTIF('Score bijhouden'!$C$4:C64,'Score bijhouden'!C64)","v":"0"}]
[null,62,{"$f":"'Score bijhouden'!C65&COUNTIF('Score bijhouden'!$C$4:C65,'Score bijhouden'!C65)","v":"0"}]
[null,63,{"$f":"'Score bijhouden'!C66&COUNTIF('Score bijhouden'!$C$4:C66,'Score bijhouden'!C66)","v":"0"}]
[null,64,{"$f":"'Score bijhouden'!C67&COUNTIF('Score bijhouden'!$C$4:C67,'Score bijhouden'!C67)","v":"0"}]
[null,65,{"$f":"'Score bijhouden'!C68&COUNTIF('Score bijhouden'!$C$4:C68,'Score bijhouden'!C68)","v":"0"}]
[null,66,{"$f":"'Score bijhouden'!C69&COUNTIF('Score bijhouden'!$C$4:C69,'Score bijhouden'!C69)","v":"0"}]
[null,67,{"$f":"'Score bijhouden'!C70&COUNTIF('Score bijhouden'!$C$4:C70,'Score bijhouden'!C70)","v":"0"}]
[null,68,{"$f":"'Score bijhouden'!C71&COUNTIF('Score bijhouden'!$C$4:C71,'Score bijhouden'!C71)","v":"0"}]
[null,69,{"$f":"'Score bijhouden'!C72&COUNTIF('Score bijhouden'!$C$4:C72,'Score bijhouden'!C72)","v":"0"}]
[null,70,{"$f":"'Score bijhouden'!C73&COUNTIF('Score bijhouden'!$C$4:C73,'Score bijhouden'!C73)","v":"0"}]
[null,71,{"$f":"'Score bijhouden'!C74&COUNTIF('Score bijhouden'!$C$4:C74,'Score bijhouden'!C74)","v":"0"}]
[null,72,{"$f":"'Score bijhouden'!C75&COUNTIF('Score bijhouden'!$C$4:C75,'Score bijhouden'!C75)","v":"0"}]
[null,73,{"$f":"'Score bijhouden'!C76&COUNTIF('Score bijhouden'!$C$4:C76,'Score bijhouden'!C76)","v":"0"}]
[null,74,{"$f":"'Score bijhouden'!C77&COUNTIF('Score bijhouden'!$C$4:C77,'Score bijhouden'!C77)","v":"0"}]
[null,75,{"$f":"'Score bijhouden'!C78&COUNTIF('Score bijhouden'!$C$4:C78,'Score bijhouden'!C78)","v":"0"}]
[null,76,{"$f":"'Score bijhouden'!C79&COUNTIF('Score bijhouden'!$C$4:C79,'Score bijhouden'!C79)","v":"0"}]
[null,77,{"$f":"'Score bijhouden'!C80&COUNTIF('Score bijhouden'!$C$4:C80,'Score bijhouden'!C80)","v":"0"}]
[null,78,{"$f":"'Score bijhouden'!C81&COUNTIF('Score bijhouden'!$C$4:C81,'Score bijhouden'!C81)","v":"0"}]
[null,79,{"$f":"'Score bijhouden'!C82&COUNTIF('Score bijhouden'!$C$4:C82,'Score bijhouden'!C82)","v":"0"}]
[null,80,{"$f":"'Score bijhouden'!C83&COUNTIF('Score bijhouden'!$C$4:C83,'Score bijhouden'!C83)","v":"0"}]
[null,81,{"$f":"'Score bijhouden'!C84&COUNTIF('Score bijhouden'!$C$4:C84,'Score bijhouden'!C84)","v":"0"}]
[null,82,{"$f":"'Score bijhouden'!C85&COUNTIF('Score bijhouden'!$C$4:C85,'Score bijhouden'!C85)","v":"0"}]
[null,83,{"$f":"'Score bijhouden'!C86&COUNTIF('Score bijhouden'!$C$4:C86,'Score bijhouden'!C86)","v":"0"}]
[null,84,{"$f":"'Score bijhouden'!C87&COUNTIF('Score bijhouden'!$C$4:C87,'Score bijhouden'!C87)","v":"0"}]
[null,85,{"$f":"'Score bijhouden'!C88&COUNTIF('Score bijhouden'!$C$4:C88,'Score bijhouden'!C88)","v":"0"}]
[null,86,{"$f":"'Score bijhouden'!C89&COUNTIF('Score bijhouden'!$C$4:C89,'Score bijhouden'!C89)","v":"0"}]
[null,87,{"$f":"'Score bijhouden'!C90&COUNTIF('Score bijhouden'!$C$4:C90,'Score bijhouden'!C90)","v":"0"}]
[null,88,{"$f":"'Score bijhouden'!C91&COUNTIF('Score bijhouden'!$C$4:C91,'Score bijhouden'!C91)","v":"0"}]
[null,89,{"$f":"'Score bijhouden'!C92&COUNTIF('Score bijhouden'!$C$4:C92,'Score bijhouden'!C92)","v":"0"}]
[null,90,{"$f":"'Score bijhouden'!C93&COUNTIF('Score bijhouden'!$C$4:C93,'Score bijhouden'!C93)","v":"0"}]
[null,91,{"$f":"'Score bijhouden'!C94&COUNTIF('Score bijhouden'!$C$4:C94,'Score bijhouden'!C94)","v":"0"}]
[null,92,{"$f":"'Score bijhouden'!C95&COUNTIF('Score bijhouden'!$C$4:C95,'Score bijhouden'!C95)","v":"0"}]
[null,93,{"$f":"'Score bijhouden'!C96&COUNTIF('Score bijhouden'!$C$4:C96,'Score bijhouden'!C96)","v":"0"}]
[null,94,{"$f":"'Score bijhouden'!C97&COUNTIF('Score bijhouden'!$C$4:C97,'Score bijhouden'!C97)","v":"0"}]
[null,95,{"$f":"'Score bijhouden'!C98&COUNTIF('Score bijhouden'!$C$4:C98,'Score bijhouden'!C98)","v":"0"}]
[null,96,{"$f":"'Score bijhouden'!C99&COUNTIF('Score bijhouden'!$C$4:C99,'Score bijhouden'!C99)","v":"0"}]
[null,97,{"$f":"'Score bijhouden'!C100&COUNTIF('Score bijhouden'!$C$4:C100,'Score bijhouden'!C100)","v":"0"}]
[null,98,{"$f":"'Score bijhouden'!C101&COUNTIF('Score bijhouden'!$C$4:C101,'Score bijhouden'!C101)","v":"0"}]
[null,99,{"$f":"'Score bijhouden'!C102&COUNTIF('Score bijhouden'!$C$4:C102,'Score bijhouden'!C102)","v":"0"}]
[null,100,{"$f":"'Score bijhouden'!C103&COUNTIF('Score bijhouden'!$C$4:C103,'Score bijhouden'!C103)","v":"0"}]
[null,101,{"$f":"'Score bijhouden'!C104&COUNTIF('Score bijhouden'!$C$4:C104,'Score bijhouden'!C104)","v":"0"}]
[null,102,{"$f":"'Score bijhouden'!C105&COUNTIF('Score bijhouden'!$C$4:C105,'Score bijhouden'!C105)","v":"0"}]
[null,103,{"$f":"'Score bijhouden'!C106&COUNTIF('Score bijhouden'!$C$4:C106,'Score bijhouden'!C106)","v":"0"}]
[null,104,{"$f":"'Score bijhouden'!C107&COUNTIF('Score bijhouden'!$C$4:C107,'Score bijhouden'!C107)","v":"0"}]
[null,105,{"$f":"'Score bijhouden'!C108&COUNTIF('Score bijhouden'!$C$4:C108,'Score bijhouden'!C108)","v":"0"}]
[null,106,{"$f":"'Score bijhouden'!C109&COUNTIF('Score bijhouden'!$C$4:C109,'Score bijhouden'!C109)","v":"0"}]
[null,107,{"$f":"'Score bijhouden'!C110&COUNTIF('Score bijhouden'!$C$4:C110,'Score bijhouden'!C110)","v":"0"}]
[null,108,{"$f":"'Score bijhouden'!C111&COUNTIF('Score bijhouden'!$C$4:C111,'Score bijhouden'!C111)","v":"0"}]
[null,109,{"$f":"'Score bijhouden'!C112&COUNTIF('Score bijhouden'!$C$4:C112,'Score bijhouden'!C112)","v":"0"}]
[null,110,{"$f":"'Score bijhouden'!C113&COUNTIF('Score bijhouden'!$C$4:C113,'Score bijhouden'!C113)","v":"0"}]
[null,111,{"$f":"'Score bijhouden'!C114&COUNTIF('Score bijhouden'!$C$4:C114,'Score bijhouden'!C114)","v":"0"}]
[null,112,{"$f":"'Score bijhouden'!C115&COUNTIF('Score bijhouden'!$C$4:C115,'Score bijhouden'!C115)","v":"0"}]
[null,113,{"$f":"'Score bijhouden'!C116&COUNTIF('Score bijhouden'!$C$4:C116,'Score bijhouden'!C116)","v":"0"}]
[null,114,{"$f":"'Score bijhouden'!C117&COUNTIF('Score bijhouden'!$C$4:C117,'Score bijhouden'!C117)","v":"0"}]
[null,115,{"$f":"'Score bijhouden'!C118&COUNTIF('Score bijhouden'!$C$4:C118,'Score bijhouden'!C118)","v":"0"}]
[null,116,{"$f":"'Score bijhouden'!C119&COUNTIF('Score bijhouden'!$C$4:C119,'Score bijhouden'!C119)","v":"0"}]
[null,117,{"$f":"'Score bijhouden'!C120&COUNTIF('Score bijhouden'!$C$4:C120,'Score bijhouden'!C120)","v":"0"}]
[null,118,{"$f":"'Score bijhouden'!C121&COUNTIF('Score bijhouden'!$C$4:C121,'Score bijhouden'!C121)","v":"0"}]
[null,119,{"$f":"'Score bijhouden'!C122&COUNTIF('Score bijhouden'!$C$4:C122,'Score bijhouden'!C122)","v":"0"}]
[null,120,{"$f":"'Score bijhouden'!C123&COUNTIF('Score bijhouden'!$C$4:C123,'Score bijhouden'!C123)","v":"0"}]
[null,121,{"$f":"'Score bijhouden'!C124&COUNTIF('Score bijhouden'!$C$4:C124,'Score bijhouden'!C124)","v":"0"}]
[null,122,{"$f":"'Score bijhouden'!C125&COUNTIF('Score bijhouden'!$C$4:C125,'Score bijhouden'!C125)","v":"0"}]
[null,123,{"$f":"'Score bijhouden'!C126&COUNTIF('Score bijhouden'!$C$4:C126,'Score bijhouden'!C126)","v":"0"}]
[null,124,{"$f":"'Score bijhouden'!C127&COUNTIF('Score bijhouden'!$C$4:C127,'Score bijhouden'!C127)","v":"0"}]
[null,125,{"$f":"'Score bijhouden'!C128&COUNTIF('Score bijhouden'!$C$4:C128,'Score bijhouden'!C128)","v":"0"}]
[null,126,{"$f":"'Score bijhouden'!C129&COUNTIF('Score bijhouden'!$C$4:C129,'Score bijhouden'!C129)","v":"0"}]
[null,127,{"$f":"'Score bijhouden'!C130&COUNTIF('Score bijhouden'!$C$4:C130,'Score bijhouden'!C130)","v":"0"}]
[null,128,{"$f":"'Score bijhouden'!C131&COUNTIF('Score bijhouden'!$C$4:C131,'Score bijhouden'!C131)","v":"0"}]
[null,129,{"$f":"'Score bijhouden'!C132&COUNTIF('Score bijhouden'!$C$4:C132,'Score bijhouden'!C132)","v":"0"}]
[null,130,{"$f":"'Score bijhouden'!C133&COUNTIF('Score bijhouden'!$C$4:C133,'Score bijhouden'!C133)","v":"0"}]
[null,131,{"$f":"'Score bijhouden'!C134&COUNTIF('Score bijhouden'!$C$4:C134,'Score bijhouden'!C134)","v":"0"}]
[null,132,{"$f":"'Score bijhouden'!C135&COUNTIF('Score bijhouden'!$C$4:C135,'Score bijhouden'!C135)","v":"0"}]
[null,133,{"$f":"'Score bijhouden'!C136&COUNTIF('Score bijhouden'!$C$4:C136,'Score bijhouden'!C136)","v":"0"}]
[null,134,{"$f":"'Score bijhouden'!C137&COUNTIF('Score bijhouden'!$C$4:C137,'Score bijhouden'!C137)","v":"0"}]
[null,135,{"$f":"'Score bijhouden'!C138&COUNTIF('Score bijhouden'!$C$4:C138,'Score bijhouden'!C138)","v":"0"}]
[null,136,{"$f":"'Score bijhouden'!C139&COUNTIF('Score bijhouden'!$C$4:C139,'Score bijhouden'!C139)","v":"0"}]
[null,137,{"$f":"'Score bijhouden'!C140&COUNTIF('Score bijhouden'!$C$4:C140,'Score bijhouden'!C140)","v":"0"}]
[null,138,{"$f":"'Score bijhouden'!C141&COUNTIF('Score bijhouden'!$C$4:C141,'Score bijhouden'!C141)","v":"0"}]
[null,139,{"$f":"'Score bijhouden'!C142&COUNTIF('Score bijhouden'!$C$4:C142,'Score bijhouden'!C142)","v":"0"}]
[null,140,{"$f":"'Score bijhouden'!C143&COUNTIF('Score bijhouden'!$C$4:C143,'Score bijhouden'!C143)","v":"0"}]
[null,141,{"$f":"'Score bijhouden'!C144&COUNTIF('Score bijhouden'!$C$4:C144,'Score bijhouden'!C144)","v":"0"}]
[null,142,{"$f":"'Score bijhouden'!C145&COUNTIF('Score bijhouden'!$C$4:C145,'Score bijhouden'!C145)","v":"0"}]
[null,143,{"$f":"'Score bijhouden'!C146&COUNTIF('Score bijhouden'!$C$4:C146,'Score bijhouden'!C146)","v":"0"}]
[null,144,{"$f":"'Score bijhouden'!C147&COUNTIF('Score bijhouden'!$C$4:C147,'Score bijhouden'!C147)","v":"0"}]
[null,145,{"$f":"'Score bijhouden'!C148&COUNTIF('Score bijhouden'!$C$4:C148,'Score bijhouden'!C148)","v":"0"}]
[null,146,{"$f":"'Score bijhouden'!C149&COUNTIF('Score bijhouden'!$C$4:C149,'Score bijhouden'!C149)","v":"0"}]
[null,147,{"$f":"'Score bijhouden'!C150&COUNTIF('Score bijhouden'!$C$4:C150,'Score bijhouden'!C150)","v":"0"}]
[null,148,{"$f":"'Score bijhouden'!C151&COUNTIF('Score bijhouden'!$C$4:C151,'Score bijhouden'!C151)","v":"0"}]
[null,149,{"$f":"'Score bijhouden'!C152&COUNTIF('Score bijhouden'!$C$4:C152,'Score bijhouden'!C152)","v":"0"}]
[null,150,{"$f":"'Score bijhouden'!C153&COUNTIF('Score bijhouden'!$C$4:C153,'Score bijhouden'!C153)","v":"0"}]
[null,151,{"$f":"'Score bijhouden'!C154&COUNTIF('Score bijhouden'!$C$4:C154,'Score bijhouden'!C154)","v":"0"}]
[null,152,{"$f":"'Score bijhouden'!C155&COUNTIF('Score bijhouden'!$C$4:C155,'Score bijhouden'!C155)","v":"0"}]
[null,153,{"$f":"'Score bijhouden'!C156&COUNTIF('Score bijhouden'!$C$4:C156,'Score bijhouden'!C156)","v":"0"}]
[null,154,{"$f":"'Score bijhouden'!C157&COUNTIF('Score bijhouden'!$C$4:C157,'Score bijhouden'!C157)","v":"0"}]
[null,155,{"$f":"'Score bijhouden'!C158&COUNTIF('Score bijhouden'!$C$4:C158,'Score bijhouden'!C158)","v":"0"}]
[null,156,{"$f":"'Score bijhouden'!C159&COUNTIF('Score bijhouden'!$C$4:C159,'Score bijhouden'!C159)","v":"0"}]
[null,157,{"$f":"'Score bijhouden'!C160&COUNTIF('Score bijhouden'!$C$4:C160,'Score bijhouden'!C160)","v":"0"}]
[null,158,{"$f":"'Score bijhouden'!C161&COUNTIF('Score bijhouden'!$C$4:C161,'Score bijhouden'!C161)","v":"0"}]
[null,159,{"$f":"'Score bijhouden'!C162&COUNTIF('Score bijhouden'!$C$4:C162,'Score bijhouden'!C162)","v":"0"}]
[null,160,{"$f":"'Score bijhouden'!C163&COUNTIF('Score bijhouden'!$C$4:C163,'Score bijhouden'!C163)","v":"0"}]
[null,161,{"$f":"'Score bijhouden'!C164&COUNTIF('Score bijhouden'!$C$4:C164,'Score bijhouden'!C164)","v":"0"}]
[null,162,{"$f":"'Score bijhouden'!C165&COUNTIF('Score bijhouden'!$C$4:C165,'Score bijhouden'!C165)","v":"0"}]
[null,163,{"$f":"'Score bijhouden'!C166&COUNTIF('Score bijhouden'!$C$4:C166,'Score bijhouden'!C166)","v":"0"}]
[null,164,{"$f":"'Score bijhouden'!C167&COUNTIF('Score bijhouden'!$C$4:C167,'Score bijhouden'!C167)","v":"0"}]
[null,165,{"$f":"'Score bijhouden'!C168&COUNTIF('Score bijhouden'!$C$4:C168,'Score bijhouden'!C168)","v":"0"}]
[null,166,{"$f":"'Score bijhouden'!C169&COUNTIF('Score bijhouden'!$C$4:C169,'Score bijhouden'!C169)","v":"0"}]
[null,167,{"$f":"'Score bijhouden'!C170&COUNTIF('Score bijhouden'!$C$4:C170,'Score bijhouden'!C170)","v":"0"}]
[null,168,{"$f":"'Score bijhouden'!C171&COUNTIF('Score bijhouden'!$C$4:C171,'Score bijhouden'!C171)","v":"0"}]
[null,169,{"$f":"'Score bijhouden'!C172&COUNTIF('Score bijhouden'!$C$4:C172,'Score bijhouden'!C172)","v":"0"}]
[null,170,{"$f":"'Score bijhouden'!C173&COUNTIF('Score bijhouden'!$C$4:C173,'Score bijhouden'!C173)","v":"0"}]
[null,171,{"$f":"'Score bijhouden'!C174&COUNTIF('Score bijhouden'!$C$4:C174,'Score bijhouden'!C174)","v":"0"}]
[null,172,{"$f":"'Score bijhouden'!C175&COUNTIF('Score bijhouden'!$C$4:C175,'Score bijhouden'!C175)","v":"0"}]
[null,173,{"$f":"'Score bijhouden'!C176&COUNTIF('Score bijhouden'!$C$4:C176,'Score bijhouden'!C176)","v":"0"}]
[null,174,{"$f":"'Score bijhouden'!C177&COUNTIF('Score bijhouden'!$C$4:C177,'Score bijhouden'!C177)","v":"0"}]
[null,175,{"$f":"'Score bijhouden'!C178&COUNTIF('Score bijhouden'!$C$4:C178,'Score bijhouden'!C178)","v":"0"}]
[null,176,{"$f":"'Score bijhouden'!C179&COUNTIF('Score bijhouden'!$C$4:C179,'Score bijhouden'!C179)","v":"0"}]
[null,177,{"$f":"'Score bijhouden'!C180&COUNTIF('Score bijhouden'!$C$4:C180,'Score bijhouden'!C180)","v":"0"}]
[null,178,{"$f":"'Score bijhouden'!C181&COUNTIF('Score bijhouden'!$C$4:C181,'Score bijhouden'!C181)","v":"0"}]
[null,179,{"$f":"'Score bijhouden'!C182&COUNTIF('Score bijhouden'!$C$4:C182,'Score bijhouden'!C182)","v":"0"}]
[null,180,{"$f":"'Score bijhouden'!C183&COUNTIF('Score bijhouden'!$C$4:C183,'Score bijhouden'!C183)","v":"0"}]
[null,181,{"$f":"'Score bijhouden'!C184&COUNTIF('Score bijhouden'!$C$4:C184,'Score bijhouden'!C184)","v":"0"}]
[null,182,{"$f":"'Score bijhouden'!C185&COUNTIF('Score bijhouden'!$C$4:C185,'Score bijhouden'!C185)","v":"0"}]
[null,183,{"$f":"'Score bijhouden'!C186&COUNTIF('Score bijhouden'!$C$4:C186,'Score bijhouden'!C186)","v":"0"}]
[null,184,{"$f":"'Score bijhouden'!C187&COUNTIF('Score bijhouden'!$C$4:C187,'Score bijhouden'!C187)","v":"0"}]
[null,185,{"$f":"'Score bijhouden'!C188&COUNTIF('Score bijhouden'!$C$4:C188,'Score bijhouden'!C188)","v":"0"}]
[null,186,{"$f":"'Score bijhouden'!C189&COUNTIF('Score bijhouden'!$C$4:C189,'Score bijhouden'!C189)","v":"0"}]
[null,187,{"$f":"'Score bijhouden'!C190&COUNTIF('Score bijhouden'!$C$4:C190,'Score bijhouden'!C190)","v":"0"}]
[null,188,{"$f":"'Score bijhouden'!C191&COUNTIF('Score bijhouden'!$C$4:C191,'Score bijhouden'!C191)","v":"0"}]
[null,189,{"$f":"'Score bijhouden'!C192&COUNTIF('Score bijhouden'!$C$4:C192,'Score bijhouden'!C192)","v":"0"}]
[null,190,{"$f":"'Score bijhouden'!C193&COUNTIF('Score bijhouden'!$C$4:C193,'Score bijhouden'!C193)","v":"0"}]
[null,191,{"$f":"'Score bijhouden'!C194&COUNTIF('Score bijhouden'!$C$4:C194,'Score bijhouden'!C194)","v":"0"}]
[null,192,{"$f":"'Score bijhouden'!C195&COUNTIF('Score bijhouden'!$C$4:C195,'Score bijhouden'!C195)","v":"0"}]
[null,193,{"$f":"'Score bijhouden'!C196&COUNTIF('Score bijhouden'!$C$4:C196,'Score bijhouden'!C196)","v":"0"}]
[null,194,{"$f":"'Score bijhouden'!C197&COUNTIF('Score bijhouden'!$C$4:C197,'Score bijhouden'!C197)","v":"0"}]
[null,195,{"$f":"'Score bijhouden'!C198&COUNTIF('Score bijhouden'!$C$4:C198,'Score bijhouden'!C198)","v":"0"}]
[null,196,{"$f":"'Score bijhouden'!C199&COUNTIF('Score bijhouden'!$C$4:C199,'Score bijhouden'!C199)","v":"0"}]
[null,197,{"$f":"'Score bijhouden'!C200&COUNTIF('Score bijhouden'!$C$4:C200,'Score bijhouden'!C200)","v":"0"}]
[null,198,{"$f":"'Score bijhouden'!C201&COUNTIF('Score bijhouden'!$C$4:C201,'Score bijhouden'!C201)","v":"0"}]
[null,199,{"$f":"'Score bijhouden'!C202&COUNTIF('Score bijhouden'!$C$4:C202,'Score bijhouden'!C202)","v":"0"}]
[null,200,{"$f":"'Score bijhouden'!C203&COUNTIF('Score bijhouden'!$C$4:C203,'Score bijhouden'!C203)","v":"0"}]
[null,201,{"$f":"'Score bijhouden'!C204&COUNTIF('Score bijhouden'!$C$4:C204,'Score bijhouden'!C204)","v":"0"}]
[null,202,{"$f":"'Score bijhouden'!C205&COUNTIF('Score bijhouden'!$C$4:C205,'Score bijhouden'!C205)","v":"0"}]
[null,203,{"$f":"'Score bijhouden'!C206&COUNTIF('Score bijhouden'!$C$4:C206,'Score bijhouden'!C206)","v":"0"}]
[null,204,{"$f":"'Score bijhouden'!C207&COUNTIF('Score bijhouden'!$C$4:C207,'Score bijhouden'!C207)","v":"0"}]
[null,205,{"$f":"'Score bijhouden'!C208&COUNTIF('Score bijhouden'!$C$4:C208,'Score bijhouden'!C208)","v":"0"}]
[null,206,{"$f":"'Score bijhouden'!C209&COUNTIF('Score bijhouden'!$C$4:C209,'Score bijhouden'!C209)","v":"0"}]
[null,207,{"$f":"'Score bijhouden'!C210&COUNTIF('Score bijhouden'!$C$4:C210,'Score bijhouden'!C210)","v":"0"}]
[null,208,{"$f":"'Score bijhouden'!C211&COUNTIF('Score bijhouden'!$C$4:C211,'Score bijhouden'!C211)","v":"0"}]
[null,209,{"$f":"'Score bijhouden'!C212&COUNTIF('Score bijhouden'!$C$4:C212,'Score bijhouden'!C212)","v":"0"}]
[null,210,{"$f":"'Score bijhouden'!C213&COUNTIF('Score bijhouden'!$C$4:C213,'Score bijhouden'!C213)","v":"0"}]
[null,211,{"$f":"'Score bijhouden'!C214&COUNTIF('Score bijhouden'!$C$4:C214,'Score bijhouden'!C214)","v":"0"}]
[null,212,{"$f":"'Score bijhouden'!C215&COUNTIF('Score bijhouden'!$C$4:C215,'Score bijhouden'!C215)","v":"0"}]
[null,213,{"$f":"'Score bijhouden'!C216&COUNTIF('Score bijhouden'!$C$4:C216,'Score bijhouden'!C216)","v":"0"}]
[null,214,{"$f":"'Score bijhouden'!C217&COUNTIF('Score bijhouden'!$C$4:C217,'Score bijhouden'!C217)","v":"0"}]
[null,215,{"$f":"'Score bijhouden'!C218&COUNTIF('Score bijhouden'!$C$4:C218,'Score bijhouden'!C218)","v":"0"}]
[null,216,{"$f":"'Score bijhouden'!C219&COUNTIF('Score bijhouden'!$C$4:C219,'Score bijhouden'!C219)","v":"0"}]
[null,217,{"$f":"'Score bijhouden'!C220&COUNTIF('Score bijhouden'!$C$4:C220,'Score bijhouden'!C220)","v":"0"}]
[null,218,{"$f":"'Score bijhouden'!C221&COUNTIF('Score bijhouden'!$C$4:C221,'Score bijhouden'!C221)","v":"0"}]
[null,219,{"$f":"'Score bijhouden'!C222&COUNTIF('Score bijhouden'!$C$4:C222,'Score bijhouden'!C222)","v":"0"}]
[null,220,{"$f":"'Score bijhouden'!C223&COUNTIF('Score bijhouden'!$C$4:C223,'Score bijhouden'!C223)","v":"0"}]
[null,221,{"$f":"'Score bijhouden'!C224&COUNTIF('Score bijhouden'!$C$4:C224,'Score bijhouden'!C224)","v":"0"}]
[null,222,{"$f":"'Score bijhouden'!C225&COUNTIF('Score bijhouden'!$C$4:C225,'Score bijhouden'!C225)","v":"0"}]
[null,223,{"$f":"'Score bijhouden'!C226&COUNTIF('Score bijhouden'!$C$4:C226,'Score bijhouden'!C226)","v":"0"}]
[null,224,{"$f":"'Score bijhouden'!C227&COUNTIF('Score bijhouden'!$C$4:C227,'Score bijhouden'!C227)","v":"0"}]
[null,225,{"$f":"'Score bijhouden'!C228&COUNTIF('Score bijhouden'!$C$4:C228,'Score bijhouden'!C228)","v":"0"}]
[null,226,{"$f":"'Score bijhouden'!C229&COUNTIF('Score bijhouden'!$C$4:C229,'Score bijhouden'!C229)","v":"0"}]
[null,227,{"$f":"'Score bijhouden'!C230&COUNTIF('Score bijhouden'!$C$4:C230,'Score bijhouden'!C230)","v":"0"}]
[null,228,{"$f":"'Score bijhouden'!C231&COUNTIF('Score bijhouden'!$C$4:C231,'Score bijhouden'!C231)","v":"0"}]
[null,229,{"$f":"'Score bijhouden'!C232&COUNTIF('Score bijhouden'!$C$4:C232,'Score bijhouden'!C232)","v":"0"}]
[null,230,{"$f":"'Score bijhouden'!C233&COUNTIF('Score bijhouden'!$C$4:C233,'Score bijhouden'!C233)","v":"0"}]
[null,231,{"$f":"'Score bijhouden'!C234&COUNTIF('Score bijhouden'!$C$4:C234,'Score bijhouden'!C234)","v":"0"}]
[null,232,{"$f":"'Score bijhouden'!C235&COUNTIF('Score bijhouden'!$C$4:C235,'Score bijhouden'!C235)","v":"0"}]
[null,233,{"$f":"'Score bijhouden'!C236&COUNTIF('Score bijhouden'!$C$4:C236,'Score bijhouden'!C236)","v":"0"}]
[null,234,{"$f":"'Score bijhouden'!C237&COUNTIF('Score bijhouden'!$C$4:C237,'Score bijhouden'!C237)","v":"0"}]
[null,235,{"$f":"'Score bijhouden'!C238&COUNTIF('Score bijhouden'!$C$4:C238,'Score bijhouden'!C238)","v":"0"}]
[null,236,{"$f":"'Score bijhouden'!C239&COUNTIF('Score bijhouden'!$C$4:C239,'Score bijhouden'!C239)","v":"0"}]
[null,237,{"$f":"'Score bijhouden'!C240&COUNTIF('Score bijhouden'!$C$4:C240,'Score bijhouden'!C240)","v":"0"}]
[null,238,{"$f":"'Score bijhouden'!C241&COUNTIF('Score bijhouden'!$C$4:C241,'Score bijhouden'!C241)","v":"0"}]
[null,239,{"$f":"'Score bijhouden'!C242&COUNTIF('Score bijhouden'!$C$4:C242,'Score bijhouden'!C242)","v":"0"}]
[null,240,{"$f":"'Score bijhouden'!C243&COUNTIF('Score bijhouden'!$C$4:C243,'Score bijhouden'!C243)","v":"0"}]
[null,241,{"$f":"'Score bijhouden'!C244&COUNTIF('Score bijhouden'!$C$4:C244,'Score bijhouden'!C244)","v":"0"}]
[null,242,{"$f":"'Score bijhouden'!C245&COUNTIF('Score bijhouden'!$C$4:C245,'Score bijhouden'!C245)","v":"0"}]
[null,243,{"$f":"'Score bijhouden'!C246&COUNTIF('Score bijhouden'!$C$4:C246,'Score bijhouden'!C246)","v":"0"}]
[null,244,{"$f":"'Score bijhouden'!C247&COUNTIF('Score bijhouden'!$C$4:C247,'Score bijhouden'!C247)","v":"0"}]
[null,245,{"$f":"'Score bijhouden'!C248&COUNTIF('Score bijhouden'!$C$4:C248,'Score bijhouden'!C248)","v":"0"}]
[null,246,{"$f":"'Score bijhouden'!C249&COUNTIF('Score bijhouden'!$C$4:C249,'Score bijhouden'!C249)","v":"0"}]
[null,247,{"$f":"'Score bijhouden'!C250&COUNTIF('Score bijhouden'!$C$4:C250,'Score bijhouden'!C250)","v":"0"}]
[null,248,{"$f":"'Score bijhouden'!C251&COUNTIF('Score bijhouden'!$C$4:C251,'Score bijhouden'!C251)","v":"0"}]
[null,249,{"$f":"'Score bijhouden'!C252&COUNTIF('Score bijhouden'!$C$4:C252,'Score bijhouden'!C252)","v":"0"}]
[null,250,{"$f":"'Score bijhouden'!C253&COUNTIF('Score bijhouden'!$C$4:C253,'Score bijhouden'!C253)","v":"0"}]
[null,251,{"$f":"'Score bijhouden'!C254&COUNTIF('Score bijhouden'!$C$4:C254,'Score bijhouden'!C254)","v":"0"}]
[null,252,{"$f":"'Score bijhouden'!C255&COUNTIF('Score bijhouden'!$C$4:C255,'Score bijhouden'!C255)","v":"0"}]
[null,253,{"$f":"'Score bijhouden'!C256&COUNTIF('Score bijhouden'!$C$4:C256,'Score bijhouden'!C256)","v":"0"}]
[null,254,{"$f":"'Score bijhouden'!C257&COUNTIF('Score bijhouden'!$C$4:C257,'Score bijhouden'!C257)","v":"0"}]
[null,255,{"$f":"'Score bijhouden'!C258&COUNTIF('Score bijhouden'!$C$4:C258,'Score bijhouden'!C258)","v":"0"}]
[null,256,{"$f":"'Score bijhouden'!C259&COUNTIF('Score bijhouden'!$C$4:C259,'Score bijhouden'!C259)","v":"0"}]
[null,257,{"$f":"'Score bijhouden'!C260&COUNTIF('Score bijhouden'!$C$4:C260,'Score bijhouden'!C260)","v":"0"}]
[null,258,{"$f":"'Score bijhouden'!C261&COUNTIF('Score bijhouden'!$C$4:C261,'Score bijhouden'!C261)","v":"0"}]
[null,259,{"$f":"'Score bijhouden'!C262&COUNTIF('Score bijhouden'!$C$4:C262,'Score bijhouden'!C262)","v":"0"}]
[null,260,{"$f":"'Score bijhouden'!C263&COUNTIF('Score bijhouden'!$C$4:C263,'Score bijhouden'!C263)","v":"0"}]
[null,261,{"$f":"'Score bijhouden'!C264&COUNTIF('Score bijhouden'!$C$4:C264,'Score bijhouden'!C264)","v":"0"}]
[null,262,{"$f":"'Score bijhouden'!C265&COUNTIF('Score bijhouden'!$C$4:C265,'Score bijhouden'!C265)","v":"0"}]
[null,263,{"$f":"'Score bijhouden'!C266&COUNTIF('Score bijhouden'!$C$4:C266,'Score bijhouden'!C266)","v":"0"}]
[null,264,{"$f":"'Score bijhouden'!C267&COUNTIF('Score bijhouden'!$C$4:C267,'Score bijhouden'!C267)","v":"0"}]
[null,265,{"$f":"'Score bijhouden'!C268&COUNTIF('Score bijhouden'!$C$4:C268,'Score bijhouden'!C268)","v":"0"}]
[null,266,{"$f":"'Score bijhouden'!C269&COUNTIF('Score bijhouden'!$C$4:C269,'Score bijhouden'!C269)","v":"0"}]
[null,267,{"$f":"'Score bijhouden'!C270&COUNTIF('Score bijhouden'!$C$4:C270,'Score bijhouden'!C270)","v":"0"}]
[null,268,{"$f":"'Score bijhouden'!C271&COUNTIF('Score bijhouden'!$C$4:C271,'Score bijhouden'!C271)","v":"0"}]
[null,269,{"$f":"'Score bijhouden'!C272&COUNTIF('Score bijhouden'!$C$4:C272,'Score bijhouden'!C272)","v":"0"}]
[null,270,{"$f":"'Score bijhouden'!C273&COUNTIF('Score bijhouden'!$C$4:C273,'Score bijhouden'!C273)","v":"0"}]
[null,271,{"$f":"'Score bijhouden'!C274&COUNTIF('Score bijhouden'!$C$4:C274,'Score bijhouden'!C274)","v":"0"}]
[null,272,{"$f":"'Score bijhouden'!C275&COUNTIF('Score bijhouden'!$C$4:C275,'Score bijhouden'!C275)","v":"0"}]
[null,273,{"$f":"'Score bijhouden'!C276&COUNTIF('Score bijhouden'!$C$4:C276,'Score bijhouden'!C276)","v":"0"}]
[null,274,{"$f":"'Score bijhouden'!C277&COUNTIF('Score bijhouden'!$C$4:C277,'Score bijhouden'!C277)","v":"0"}]
[null,275,{"$f":"'Score bijhouden'!C278&COUNTIF('Score bijhouden'!$C$4:C278,'Score bijhouden'!C278)","v":"0"}]
[null,276,{"$f":"'Score bijhouden'!C279&COUNTIF('Score bijhouden'!$C$4:C279,'Score bijhouden'!C279)","v":"0"}]
[null,277,{"$f":"'Score bijhouden'!C280&COUNTIF('Score bijhouden'!$C$4:C280,'Score bijhouden'!C280)","v":"0"}]
[null,278,{"$f":"'Score bijhouden'!C281&COUNTIF('Score bijhouden'!$C$4:C281,'Score bijhouden'!C281)","v":"0"}]
[null,279,{"$f":"'Score bijhouden'!C282&COUNTIF('Score bijhouden'!$C$4:C282,'Score bijhouden'!C282)","v":"0"}]
[null,280,{"$f":"'Score bijhouden'!C283&COUNTIF('Score bijhouden'!$C$4:C283,'Score bijhouden'!C283)","v":"0"}]
[null,281,{"$f":"'Score bijhouden'!C284&COUNTIF('Score bijhouden'!$C$4:C284,'Score bijhouden'!C284)","v":"0"}]
[null,282,{"$f":"'Score bijhouden'!C285&COUNTIF('Score bijhouden'!$C$4:C285,'Score bijhouden'!C285)","v":"0"}]
[null,283,{"$f":"'Score bijhouden'!C286&COUNTIF('Score bijhouden'!$C$4:C286,'Score bijhouden'!C286)","v":"0"}]
[null,284,{"$f":"'Score bijhouden'!C287&COUNTIF('Score bijhouden'!$C$4:C287,'Score bijhouden'!C287)","v":"0"}]
[null,285,{"$f":"'Score bijhouden'!C288&COUNTIF('Score bijhouden'!$C$4:C288,'Score bijhouden'!C288)","v":"0"}]
[null,286,{"$f":"'Score bijhouden'!C289&COUNTIF('Score bijhouden'!$C$4:C289,'Score bijhouden'!C289)","v":"0"}]
[null,287,{"$f":"'Score bijhouden'!C290&COUNTIF('Score bijhouden'!$C$4:C290,'Score bijhouden'!C290)","v":"0"}]
[null,288,{"$f":"'Score bijhouden'!C291&COUNTIF('Score bijhouden'!$C$4:C291,'Score bijhouden'!C291)","v":"0"}]
[null,289,{"$f":"'Score bijhouden'!C292&COUNTIF('Score bijhouden'!$C$4:C292,'Score bijhouden'!C292)","v":"0"}]
[null,290,{"$f":"'Score bijhouden'!C293&COUNTIF('Score bijhouden'!$C$4:C293,'Score bijhouden'!C293)","v":"0"}]
[null,291,{"$f":"'Score bijhouden'!C294&COUNTIF('Score bijhouden'!$C$4:C294,'Score bijhouden'!C294)","v":"0"}]
[null,292,{"$f":"'Score bijhouden'!C295&COUNTIF('Score bijhouden'!$C$4:C295,'Score bijhouden'!C295)","v":"0"}]
[null,293,{"$f":"'Score bijhouden'!C296&COUNTIF('Score bijhouden'!$C$4:C296,'Score bijhouden'!C296)","v":"0"}]
[null,294,{"$f":"'Score bijhouden'!C297&COUNTIF('Score bijhouden'!$C$4:C297,'Score bijhouden'!C297)","v":"0"}]
[null,295,{"$f":"'Score bijhouden'!C298&COUNTIF('Score bijhouden'!$C$4:C298,'Score bijhouden'!C298)","v":"0"}]
[null,296,{"$f":"'Score bijhouden'!C299&COUNTIF('Score bijhouden'!$C$4:C299,'Score bijhouden'!C299)","v":"0"}]
[null,297,{"$f":"'Score bijhouden'!C300&COUNTIF('Score bijhouden'!$C$4:C300,'Score bijhouden'!C300)","v":"0"}]
[null,298,{"$f":"'Score bijhouden'!C301&COUNTIF('Score bijhouden'!$C$4:C301,'Score bijhouden'!C301)","v":"0"}]
[null,299,{"$f":"'Score bijhouden'!C302&COUNTIF('Score bijhouden'!$C$4:C302,'Score bijhouden'!C302)","v":"0"}]
[null,300,{"$f":"'Score bijhouden'!C303&COUNTIF('Score bijhouden'!$C$4:C303,'Score bijhouden'!C303)","v":"0"}]
[null,301,{"$f":"'Score bijhouden'!C304&COUNTIF('Score bijhouden'!$C$4:C304,'Score bijhouden'!C304)","v":"0"}]
[null,302,{"$f":"'Score bijhouden'!C305&COUNTIF('Score bijhouden'!$C$4:C305,'Score bijhouden'!C305)","v":"0"}]
[null,303,{"$f":"'Score bijhouden'!C306&COUNTIF('Score bijhouden'!$C$4:C306,'Score bijhouden'!C306)","v":"0"}]
[null,304,{"$f":"'Score bijhouden'!C307&COUNTIF('Score bijhouden'!$C$4:C307,'Score bijhouden'!C307)","v":"0"}]
[null,305,{"$f":"'Score bijhouden'!C308&COUNTIF('Score bijhouden'!$C$4:C308,'Score bijhouden'!C308)","v":"0"}]
[null,306,{"$f":"'Score bijhouden'!C309&COUNTIF('Score bijhouden'!$C$4:C309,'Score bijhouden'!C309)","v":"0"}]
[null,307,{"$f":"'Score bijhouden'!C310&COUNTIF('Score bijhouden'!$C$4:C310,'Score bijhouden'!C310)","v":"0"}]
[null,308,{"$f":"'Score bijhouden'!C311&COUNTIF('Score bijhouden'!$C$4:C311,'Score bijhouden'!C311)","v":"0"}]
[null,309,{"$f":"'Score bijhouden'!C312&COUNTIF('Score bijhouden'!$C$4:C312,'Score bijhouden'!C312)","v":"0"}]
[null,310,{"$f":"'Score bijhouden'!C313&COUNTIF('Score bijhouden'!$C$4:C313,'Score bijhouden'!C313)","v":"0"}]
[null,311,{"$f":"'Score bijhouden'!C314&COUNTIF('Score bijhouden'!$C$4:C314,'Score bijhouden'!C314)","v":"0"}]
[null,312,{"$f":"'Score bijhouden'!C315&COUNTIF('Score bijhouden'!$C$4:C315,'Score bijhouden'!C315)","v":"0"}]
[null,313,{"$f":"'Score bijhouden'!C316&COUNTIF('Score bijhouden'!$C$4:C316,'Score bijhouden'!C316)","v":"0"}]
[null,314,{"$f":"'Score bijhouden'!C317&COUNTIF('Score bijhouden'!$C$4:C317,'Score bijhouden'!C317)","v":"0"}]
[null,315,{"$f":"'Score bijhouden'!C318&COUNTIF('Score bijhouden'!$C$4:C318,'Score bijhouden'!C318)","v":"0"}]
[null,316,{"$f":"'Score bijhouden'!C319&COUNTIF('Score bijhouden'!$C$4:C319,'Score bijhouden'!C319)","v":"0"}]
[null,317,{"$f":"'Score bijhouden'!C320&COUNTIF('Score bijhouden'!$C$4:C320,'Score bijhouden'!C320)","v":"0"}]
[null,318,{"$f":"'Score bijhouden'!C321&COUNTIF('Score bijhouden'!$C$4:C321,'Score bijhouden'!C321)","v":"0"}]
[null,319,{"$f":"'Score bijhouden'!C322&COUNTIF('Score bijhouden'!$C$4:C322,'Score bijhouden'!C322)","v":"0"}]
[null,320,{"$f":"'Score bijhouden'!C323&COUNTIF('Score bijhouden'!$C$4:C323,'Score bijhouden'!C323)","v":"0"}]
[null,321,{"$f":"'Score bijhouden'!C324&COUNTIF('Score bijhouden'!$C$4:C324,'Score bijhouden'!C324)","v":"0"}]
[null,322,{"$f":"'Score bijhouden'!C325&COUNTIF('Score bijhouden'!$C$4:C325,'Score bijhouden'!C325)","v":"0"}]
[null,323,{"$f":"'Score bijhouden'!C326&COUNTIF('Score bijhouden'!$C$4:C326,'Score bijhouden'!C326)","v":"0"}]
[null,324,{"$f":"'Score bijhouden'!C327&COUNTIF('Score bijhouden'!$C$4:C327,'Score bijhouden'!C327)","v":"0"}]
[null,325,{"$f":"'Score bijhouden'!C328&COUNTIF('Score bijhouden'!$C$4:C328,'Score bijhouden'!C328)","v":"0"}]
[null,326,{"$f":"'Score bijhouden'!C329&COUNTIF('Score bijhouden'!$C$4:C329,'Score bijhouden'!C329)","v":"0"}]
[null,327,{"$f":"'Score bijhouden'!C330&COUNTIF('Score bijhouden'!$C$4:C330,'Score bijhouden'!C330)","v":"0"}]
[null,328,{"$f":"'Score bijhouden'!C331&COUNTIF('Score bijhouden'!$C$4:C331,'Score bijhouden'!C331)","v":"0"}]
[null,329,{"$f":"'Score bijhouden'!C332&COUNTIF('Score bijhouden'!$C$4:C332,'Score bijhouden'!C332)","v":"0"}]
[null,330,{"$f":"'Score bijhouden'!C333&COUNTIF('Score bijhouden'!$C$4:C333,'Score bijhouden'!C333)","v":"0"}]
[null,331,{"$f":"'Score bijhouden'!C334&COUNTIF('Score bijhouden'!$C$4:C334,'Score bijhouden'!C334)","v":"0"}]
[null,332,{"$f":"'Score bijhouden'!C335&COUNTIF('Score bijhouden'!$C$4:C335,'Score bijhouden'!C335)","v":"0"}]
[null,333,{"$f":"'Score bijhouden'!C336&COUNTIF('Score bijhouden'!$C$4:C336,'Score bijhouden'!C336)","v":"0"}]
[null,334,{"$f":"'Score bijhouden'!C337&COUNTIF('Score bijhouden'!$C$4:C337,'Score bijhouden'!C337)","v":"0"}]
[null,335,{"$f":"'Score bijhouden'!C338&COUNTIF('Score bijhouden'!$C$4:C338,'Score bijhouden'!C338)","v":"0"}]
[null,336,{"$f":"'Score bijhouden'!C339&COUNTIF('Score bijhouden'!$C$4:C339,'Score bijhouden'!C339)","v":"0"}]
[null,337,{"$f":"'Score bijhouden'!C340&COUNTIF('Score bijhouden'!$C$4:C340,'Score bijhouden'!C340)","v":"0"}]
[null,338,{"$f":"'Score bijhouden'!C341&COUNTIF('Score bijhouden'!$C$4:C341,'Score bijhouden'!C341)","v":"0"}]
[null,339,{"$f":"'Score bijhouden'!C342&COUNTIF('Score bijhouden'!$C$4:C342,'Score bijhouden'!C342)","v":"0"}]
[null,340,{"$f":"'Score bijhouden'!C343&COUNTIF('Score bijhouden'!$C$4:C343,'Score bijhouden'!C343)","v":"0"}]
[null,341,{"$f":"'Score bijhouden'!C344&COUNTIF('Score bijhouden'!$C$4:C344,'Score bijhouden'!C344)","v":"0"}]
[null,342,{"$f":"'Score bijhouden'!C345&COUNTIF('Score bijhouden'!$C$4:C345,'Score bijhouden'!C345)","v":"0"}]
[null,343,{"$f":"'Score bijhouden'!C346&COUNTIF('Score bijhouden'!$C$4:C346,'Score bijhouden'!C346)","v":"0"}]
[null,344,{"$f":"'Score bijhouden'!C347&COUNTIF('Score bijhouden'!$C$4:C347,'Score bijhouden'!C347)","v":"0"}]
[null,345,{"$f":"'Score bijhouden'!C348&COUNTIF('Score bijhouden'!$C$4:C348,'Score bijhouden'!C348)","v":"0"}]
[null,346,{"$f":"'Score bijhouden'!C349&COUNTIF('Score bijhouden'!$C$4:C349,'Score bijhouden'!C349)","v":"0"}]
[null,347,{"$f":"'Score bijhouden'!C350&COUNTIF('Score bijhouden'!$C$4:C350,'Score bijhouden'!C350)","v":"0"}]
[null,348,{"$f":"'Score bijhouden'!C351&COUNTIF('Score bijhouden'!$C$4:C351,'Score bijhouden'!C351)","v":"0"}]
[null,349,{"$f":"'Score bijhouden'!C352&COUNTIF('Score bijhouden'!$C$4:C352,'Score bijhouden'!C352)","v":"0"}]
[null,350,{"$f":"'Score bijhouden'!C353&COUNTIF('Score bijhouden'!$C$4:C353,'Score bijhouden'!C353)","v":"0"}]
[null,351,{"$f":"'Score bijhouden'!C354&COUNTIF('Score bijhouden'!$C$4:C354,'Score bijhouden'!C354)","v":"0"}]
[null,352,{"$f":"'Score bijhouden'!C355&COUNTIF('Score bijhouden'!$C$4:C355,'Score bijhouden'!C355)","v":"0"}]
[null,353,{"$f":"'Score bijhouden'!C356&COUNTIF('Score bijhouden'!$C$4:C356,'Score bijhouden'!C356)","v":"0"}]
[null,354,{"$f":"'Score bijhouden'!C357&COUNTIF('Score bijhouden'!$C$4:C357,'Score bijhouden'!C357)","v":"0"}]
[null,355,{"$f":"'Score bijhouden'!C358&COUNTIF('Score bijhouden'!$C$4:C358,'Score bijhouden'!C358)","v":"0"}]
[null,356,{"$f":"'Score bijhouden'!C359&COUNTIF('Score bijhouden'!$C$4:C359,'Score bijhouden'!C359)","v":"0"}]
[null,357,{"$f":"'Score bijhouden'!C360&COUNTIF('Score bijhouden'!$C$4:C360,'Score bijhouden'!C360)","v":"0"}]
[null,358,{"$f":"'Score bijhouden'!C361&COUNTIF('Score bijhouden'!$C$4:C361,'Score bijhouden'!C361)","v":"0"}]
[null,359,{"$f":"'Score bijhouden'!C362&COUNTIF('Score bijhouden'!$C$4:C362,'Score bijhouden'!C362)","v":"0"}]
[null,360,{"$f":"'Score bijhouden'!C363&COUNTIF('Score bijhouden'!$C$4:C363,'Score bijhouden'!C363)","v":"0"}]
[null,361,{"$f":"'Score bijhouden'!C364&COUNTIF('Score bijhouden'!$C$4:C364,'Score bijhouden'!C364)","v":"0"}]
[null,362,{"$f":"'Score bijhouden'!C365&COUNTIF('Score bijhouden'!$C$4:C365,'Score bijhouden'!C365)","v":"0"}]
[null,363,{"$f":"'Score bijhouden'!C366&COUNTIF('Score bijhouden'!$C$4:C366,'Score bijhouden'!C366)","v":"0"}]
[null,364,{"$f":"'Score bijhouden'!C367&COUNTIF('Score bijhouden'!$C$4:C367,'Score bijhouden'!C367)","v":"0"}]
[null,365,{"$f":"'Score bijhouden'!C368&COUNTIF('Score bijhouden'!$C$4:C368,'Score bijhouden'!C368)","v":"0"}]
[null,366,{"$f":"'Score bijhouden'!C369&COUNTIF('Score bijhouden'!$C$4:C369,'Score bijhouden'!C369)","v":"0"}]
[null,367,{"$f":"'Score bijhouden'!C370&COUNTIF('Score bijhouden'!$C$4:C370,'Score bijhouden'!C370)","v":"0"}]
[null,368,{"$f":"'Score bijhouden'!C371&COUNTIF('Score bijhouden'!$C$4:C371,'Score bijhouden'!C371)","v":"0"}]
[null,369,{"$f":"'Score bijhouden'!C372&COUNTIF('Score bijhouden'!$C$4:C372,'Score bijhouden'!C372)","v":"0"}]
[null,370,{"$f":"'Score bijhouden'!C373&COUNTIF('Score bijhouden'!$C$4:C373,'Score bijhouden'!C373)","v":"0"}]
[null,371,{"$f":"'Score bijhouden'!C374&COUNTIF('Score bijhouden'!$C$4:C374,'Score bijhouden'!C374)","v":"0"}]
[null,372,{"$f":"'Score bijhouden'!C375&COUNTIF('Score bijhouden'!$C$4:C375,'Score bijhouden'!C375)","v":"0"}]
[null,373,{"$f":"'Score bijhouden'!C376&COUNTIF('Score bijhouden'!$C$4:C376,'Score bijhouden'!C376)","v":"0"}]
[null,374,{"$f":"'Score bijhouden'!C377&COUNTIF('Score bijhouden'!$C$4:C377,'Score bijhouden'!C377)","v":"0"}]
[null,375,{"$f":"'Score bijhouden'!C378&COUNTIF('Score bijhouden'!$C$4:C378,'Score bijhouden'!C378)","v":"0"}]
[null,376,{"$f":"'Score bijhouden'!C379&COUNTIF('Score bijhouden'!$C$4:C379,'Score bijhouden'!C379)","v":"0"}]
[null,377,{"$f":"'Score bijhouden'!C380&COUNTIF('Score bijhouden'!$C$4:C380,'Score bijhouden'!C380)","v":"0"}]
[null,378,{"$f":"'Score bijhouden'!C381&COUNTIF('Score bijhouden'!$C$4:C381,'Score bijhouden'!C381)","v":"0"}]
[null,379,{"$f":"'Score bijhouden'!C382&COUNTIF('Score bijhouden'!$C$4:C382,'Score bijhouden'!C382)","v":"0"}]
[null,380,{"$f":"'Score bijhouden'!C383&COUNTIF('Score bijhouden'!$C$4:C383,'Score bijhouden'!C383)","v":"0"}]
[null,381,{"$f":"'Score bijhouden'!C384&COUNTIF('Score bijhouden'!$C$4:C384,'Score bijhouden'!C384)","v":"0"}]
[null,382,{"$f":"'Score bijhouden'!C385&COUNTIF('Score bijhouden'!$C$4:C385,'Score bijhouden'!C385)","v":"0"}]
[null,383,{"$f":"'Score bijhouden'!C386&COUNTIF('Score bijhouden'!$C$4:C386,'Score bijhouden'!C386)","v":"0"}]
[null,384,{"$f":"'Score bijhouden'!C387&COUNTIF('Score bijhouden'!$C$4:C387,'Score bijhouden'!C387)","v":"0"}]
[null,385,{"$f":"'Score bijhouden'!C388&COUNTIF('Score bijhouden'!$C$4:C388,'Score bijhouden'!C388)","v":"0"}]
[null,386,{"$f":"'Score bijhouden'!C389&COUNTIF('Score bijhouden'!$C$4:C389,'Score bijhouden'!C389)","v":"0"}]
[null,387,{"$f":"'Score bijhouden'!C390&COUNTIF('Score bijhouden'!$C$4:C390,'Score bijhouden'!C390)","v":"0"}]
[null,388,{"$f":"'Score bijhouden'!C391&COUNTIF('Score bijhouden'!$C$4:C391,'Score bijhouden'!C391)","v":"0"}]
[null,389,{"$f":"'Score bijhouden'!C392&COUNTIF('Score bijhouden'!$C$4:C392,'Score bijhouden'!C392)","v":"0"}]
[null,390,{"$f":"'Score bijhouden'!C393&COUNTIF('Score bijhouden'!$C$4:C393,'Score bijhouden'!C393)","v":"0"}]
[null,391,{"$f":"'Score bijhouden'!C394&COUNTIF('Score bijhouden'!$C$4:C394,'Score bijhouden'!C394)","v":"0"}]
[null,392,{"$f":"'Score bijhouden'!C395&COUNTIF('Score bijhouden'!$C$4:C395,'Score bijhouden'!C395)","v":"0"}]
[null,393,{"$f":"'Score bijhouden'!C396&COUNTIF('Score bijhouden'!$C$4:C396,'Score bijhouden'!C396)","v":"0"}]
[null,394,{"$f":"'Score bijhouden'!C397&COUNTIF('Score bijhouden'!$C$4:C397,'Score bijhouden'!C397)","v":"0"}]
[null,395,{"$f":"'Score bijhouden'!C398&COUNTIF('Score bijhouden'!$C$4:C398,'Score bijhouden'!C398)","v":"0"}]
[null,396,{"$f":"'Score bijhouden'!C399&COUNTIF('Score bijhouden'!$C$4:C399,'Score bijhouden'!C399)","v":"0"}]
[null,397,{"$f":"'Score bijhouden'!C400&COUNTIF('Score bijhouden'!$C$4:C400,'Score bijhouden'!C400)","v":"0"}]
[null,398,{"$f":"'Score bijhouden'!C401&COUNTIF('Score bijhouden'!$C$4:C401,'Score bijhouden'!C401)","v":"0"}]
[null,399,{"$f":"'Score bijhouden'!C402&COUNTIF('Score bijhouden'!$C$4:C402,'Score bijhouden'!C402)","v":"0"}]
[null,400,{"$f":"'Score bijhouden'!C403&COUNTIF('Score bijhouden'!$C$4:C403,'Score bijhouden'!C403)","v":"0"}]
[null,401,{"$f":"'Score bijhouden'!C404&COUNTIF('Score bijhouden'!$C$4:C404,'Score bijhouden'!C404)","v":"0"}]
[null,402,{"$f":"'Score bijhouden'!C405&COUNTIF('Score bijhouden'!$C$4:C405,'Score bijhouden'!C405)","v":"0"}]
[null,403,{"$f":"'Score bijhouden'!C406&COUNTIF('Score bijhouden'!$C$4:C406,'Score bijhouden'!C406)","v":"0"}]
[null,404,{"$f":"'Score bijhouden'!C407&COUNTIF('Score bijhouden'!$C$4:C407,'Score bijhouden'!C407)","v":"0"}]
[null,405,{"$f":"'Score bijhouden'!C408&COUNTIF('Score bijhouden'!$C$4:C408,'Score bijhouden'!C408)","v":"0"}]
[null,406,{"$f":"'Score bijhouden'!C409&COUNTIF('Score bijhouden'!$C$4:C409,'Score bijhouden'!C409)","v":"0"}]
[null,407,{"$f":"'Score bijhouden'!C410&COUNTIF('Score bijhouden'!$C$4:C410,'Score bijhouden'!C410)","v":"0"}]
[null,408,{"$f":"'Score bijhouden'!C411&COUNTIF('Score bijhouden'!$C$4:C411,'Score bijhouden'!C411)","v":"0"}]
[null,409,{"$f":"'Score bijhouden'!C412&COUNTIF('Score bijhouden'!$C$4:C412,'Score bijhouden'!C412)","v":"0"}]
[null,410,{"$f":"'Score bijhouden'!C413&COUNTIF('Score bijhouden'!$C$4:C413,'Score bijhouden'!C413)","v":"0"}]
[null,411,{"$f":"'Score bijhouden'!C414&COUNTIF('Score bijhouden'!$C$4:C414,'Score bijhouden'!C414)","v":"0"}]
[null,412,{"$f":"'Score bijhouden'!C415&COUNTIF('Score bijhouden'!$C$4:C415,'Score bijhouden'!C415)","v":"0"}]
[null,413,{"$f":"'Score bijhouden'!C416&COUNTIF('Score bijhouden'!$C$4:C416,'Score bijhouden'!C416)","v":"0"}]
[null,414,{"$f":"'Score bijhouden'!C417&COUNTIF('Score bijhouden'!$C$4:C417,'Score bijhouden'!C417)","v":"0"}]
[null,415,{"$f":"'Score bijhouden'!C418&COUNTIF('Score bijhouden'!$C$4:C418,'Score bijhouden'!C418)","v":"0"}]
[null,416,{"$f":"'Score bijhouden'!C419&COUNTIF('Score bijhouden'!$C$4:C419,'Score bijhouden'!C419)","v":"0"}]
[null,417,{"$f":"'Score bijhouden'!C420&COUNTIF('Score bijhouden'!$C$4:C420,'Score bijhouden'!C420)","v":"0"}]
[null,418,{"$f":"'Score bijhouden'!C421&COUNTIF('Score bijhouden'!$C$4:C421,'Score bijhouden'!C421)","v":"0"}]
[null,419,{"$f":"'Score bijhouden'!C422&COUNTIF('Score bijhouden'!$C$4:C422,'Score bijhouden'!C422)","v":"0"}]
[null,420,{"$f":"'Score bijhouden'!C423&COUNTIF('Score bijhouden'!$C$4:C423,'Score bijhouden'!C423)","v":"0"}]
[null,421,{"$f":"'Score bijhouden'!C424&COUNTIF('Score bijhouden'!$C$4:C424,'Score bijhouden'!C424)","v":"0"}]
[null,422,{"$f":"'Score bijhouden'!C425&COUNTIF('Score bijhouden'!$C$4:C425,'Score bijhouden'!C425)","v":"0"}]
[null,423,{"$f":"'Score bijhouden'!C426&COUNTIF('Score bijhouden'!$C$4:C426,'Score bijhouden'!C426)","v":"0"}]
[null,424,{"$f":"'Score bijhouden'!C427&COUNTIF('Score bijhouden'!$C$4:C427,'Score bijhouden'!C427)","v":"0"}]
[null,425,{"$f":"'Score bijhouden'!C428&COUNTIF('Score bijhouden'!$C$4:C428,'Score bijhouden'!C428)","v":"0"}]
[null,426,{"$f":"'Score bijhouden'!C429&COUNTIF('Score bijhouden'!$C$4:C429,'Score bijhouden'!C429)","v":"0"}]
[null,427,{"$f":"'Score bijhouden'!C430&COUNTIF('Score bijhouden'!$C$4:C430,'Score bijhouden'!C430)","v":"0"}]
[null,428,{"$f":"'Score bijhouden'!C431&COUNTIF('Score bijhouden'!$C$4:C431,'Score bijhouden'!C431)","v":"0"}]
[null,429,{"$f":"'Score bijhouden'!C432&COUNTIF('Score bijhouden'!$C$4:C432,'Score bijhouden'!C432)","v":"0"}]
[null,430,{"$f":"'Score bijhouden'!C433&COUNTIF('Score bijhouden'!$C$4:C433,'Score bijhouden'!C433)","v":"0"}]
[null,431,{"$f":"'Score bijhouden'!C434&COUNTIF('Score bijhouden'!$C$4:C434,'Score bijhouden'!C434)","v":"0"}]
[null,432,{"$f":"'Score bijhouden'!C435&COUNTIF('Score bijhouden'!$C$4:C435,'Score bijhouden'!C435)","v":"0"}]
[null,433,{"$f":"'Score bijhouden'!C436&COUNTIF('Score bijhouden'!$C$4:C436,'Score bijhouden'!C436)","v":"0"}]
[null,434,{"$f":"'Score bijhouden'!C437&COUNTIF('Score bijhouden'!$C$4:C437,'Score bijhouden'!C437)","v":"0"}]
[null,435,{"$f":"'Score bijhouden'!C438&COUNTIF('Score bijhouden'!$C$4:C438,'Score bijhouden'!C438)","v":"0"}]
[null,436,{"$f":"'Score bijhouden'!C439&COUNTIF('Score bijhouden'!$C$4:C439,'Score bijhouden'!C439)","v":"0"}]
[null,437,{"$f":"'Score bijhouden'!C440&COUNTIF('Score bijhouden'!$C$4:C440,'Score bijhouden'!C440)","v":"0"}]
[null,438,{"$f":"'Score bijhouden'!C441&COUNTIF('Score bijhouden'!$C$4:C441,'Score bijhouden'!C441)","v":"0"}]
[null,439,{"$f":"'Score bijhouden'!C442&COUNTIF('Score bijhouden'!$C$4:C442,'Score bijhouden'!C442)","v":"0"}]
[null,440,{"$f":"'Score bijhouden'!C443&COUNTIF('Score bijhouden'!$C$4:C443,'Score bijhouden'!C443)","v":"0"}]
[null,441,{"$f":"'Score bijhouden'!C444&COUNTIF('Score bijhouden'!$C$4:C444,'Score bijhouden'!C444)","v":"0"}]
[null,442,{"$f":"'Score bijhouden'!C445&COUNTIF('Score bijhouden'!$C$4:C445,'Score bijhouden'!C445)","v":"0"}]
[null,443,{"$f":"'Score bijhouden'!C446&COUNTIF('Score bijhouden'!$C$4:C446,'Score bijhouden'!C446)","v":"0"}]
[null,444,{"$f":"'Score bijhouden'!C447&COUNTIF('Score bijhouden'!$C$4:C447,'Score bijhouden'!C447)","v":"0"}]
[null,445,{"$f":"'Score bijhouden'!C448&COUNTIF('Score bijhouden'!$C$4:C448,'Score bijhouden'!C448)","v":"0"}]
[null,446,{"$f":"'Score bijhouden'!C449&COUNTIF('Score bijhouden'!$C$4:C449,'Score bijhouden'!C449)","v":"0"}]
[null,447,{"$f":"'Score bijhouden'!C450&COUNTIF('Score bijhouden'!$C$4:C450,'Score bijhouden'!C450)","v":"0"}]
[null,448,{"$f":"'Score bijhouden'!C451&COUNTIF('Score bijhouden'!$C$4:C451,'Score bijhouden'!C451)","v":"0"}]
[null,449,{"$f":"'Score bijhouden'!C452&COUNTIF('Score bijhouden'!$C$4:C452,'Score bijhouden'!C452)","v":"0"}]
[null,450,{"$f":"'Score bijhouden'!C453&COUNTIF('Score bijhouden'!$C$4:C453,'Score bijhouden'!C453)","v":"0"}]
[null,451,{"$f":"'Score bijhouden'!C454&COUNTIF('Score bijhouden'!$C$4:C454,'Score bijhouden'!C454)","v":"0"}]
[null,452,{"$f":"'Score bijhouden'!C455&COUNTIF('Score bijhouden'!$C$4:C455,'Score bijhouden'!C455)","v":"0"}]
[null,453,{"$f":"'Score bijhouden'!C456&COUNTIF('Score bijhouden'!$C$4:C456,'Score bijhouden'!C456)","v":"0"}]
[null,454,{"$f":"'Score bijhouden'!C457&COUNTIF('Score bijhouden'!$C$4:C457,'Score bijhouden'!C457)","v":"0"}]
[null,455,{"$f":"'Score bijhouden'!C458&COUNTIF('Score bijhouden'!$C$4:C458,'Score bijhouden'!C458)","v":"0"}]
[null,456,{"$f":"'Score bijhouden'!C459&COUNTIF('Score bijhouden'!$C$4:C459,'Score bijhouden'!C459)","v":"0"}]
[null,457,{"$f":"'Score bijhouden'!C460&COUNTIF('Score bijhouden'!$C$4:C460,'Score bijhouden'!C460)","v":"0"}]
[null,458,{"$f":"'Score bijhouden'!C461&COUNTIF('Score bijhouden'!$C$4:C461,'Score bijhouden'!C461)","v":"0"}]
[null,459,{"$f":"'Score bijhouden'!C462&COUNTIF('Score bijhouden'!$C$4:C462,'Score bijhouden'!C462)","v":"0"}]
[null,460,{"$f":"'Score bijhouden'!C463&COUNTIF('Score bijhouden'!$C$4:C463,'Score bijhouden'!C463)","v":"0"}]
[null,461,{"$f":"'Score bijhouden'!C464&COUNTIF('Score bijhouden'!$C$4:C464,'Score bijhouden'!C464)","v":"0"}]
[null,462,{"$f":"'Score bijhouden'!C465&COUNTIF('Score bijhouden'!$C$4:C465,'Score bijhouden'!C465)","v":"0"}]
[null,463,{"$f":"'Score bijhouden'!C466&COUNTIF('Score bijhouden'!$C$4:C466,'Score bijhouden'!C466)","v":"0"}]
[null,464,{"$f":"'Score bijhouden'!C467&COUNTIF('Score bijhouden'!$C$4:C467,'Score bijhouden'!C467)","v":"0"}]
[null,465,{"$f":"'Score bijhouden'!C468&COUNTIF('Score bijhouden'!$C$4:C468,'Score bijhouden'!C468)","v":"0"}]
[null,466,{"$f":"'Score bijhouden'!C469&COUNTIF('Score bijhouden'!$C$4:C469,'Score bijhouden'!C469)","v":"0"}]
[null,467,{"$f":"'Score bijhouden'!C470&COUNTIF('Score bijhouden'!$C$4:C470,'Score bijhouden'!C470)","v":"0"}]
[null,468,{"$f":"'Score bijhouden'!C471&COUNTIF('Score bijhouden'!$C$4:C471,'Score bijhouden'!C471)","v":"0"}]
[null,469,{"$f":"'Score bijhouden'!C472&COUNTIF('Score bijhouden'!$C$4:C472,'Score bijhouden'!C472)","v":"0"}]
[null,470,{"$f":"'Score bijhouden'!C473&COUNTIF('Score bijhouden'!$C$4:C473,'Score bijhouden'!C473)","v":"0"}]
[null,471,{"$f":"'Score bijhouden'!C474&COUNTIF('Score bijhouden'!$C$4:C474,'Score bijhouden'!C474)","v":"0"}]
[null,472,{"$f":"'Score bijhouden'!C475&COUNTIF('Score bijhouden'!$C$4:C475,'Score bijhouden'!C475)","v":"0"}]
[null,473,{"$f":"'Score bijhouden'!C476&COUNTIF('Score bijhouden'!$C$4:C476,'Score bijhouden'!C476)","v":"0"}]
[null,474,{"$f":"'Score bijhouden'!C477&COUNTIF('Score bijhouden'!$C$4:C477,'Score bijhouden'!C477)","v":"0"}]
[null,475,{"$f":"'Score bijhouden'!C478&COUNTIF('Score bijhouden'!$C$4:C478,'Score bijhouden'!C478)","v":"0"}]
[null,476,{"$f":"'Score bijhouden'!C479&COUNTIF('Score bijhouden'!$C$4:C479,'Score bijhouden'!C479)","v":"0"}]
[null,477,{"$f":"'Score bijhouden'!C480&COUNTIF('Score bijhouden'!$C$4:C480,'Score bijhouden'!C480)","v":"0"}]
[null,478,{"$f":"'Score bijhouden'!C481&COUNTIF('Score bijhouden'!$C$4:C481,'Score bijhouden'!C481)","v":"0"}]
[null,479,{"$f":"'Score bijhouden'!C482&COUNTIF('Score bijhouden'!$C$4:C482,'Score bijhouden'!C482)","v":"0"}]
[null,480,{"$f":"'Score bijhouden'!C483&COUNTIF('Score bijhouden'!$C$4:C483,'Score bijhouden'!C483)","v":"0"}]
[null,481,{"$f":"'Score bijhouden'!C484&COUNTIF('Score bijhouden'!$C$4:C484,'Score bijhouden'!C484)","v":"0"}]
[null,482,{"$f":"'Score bijhouden'!C485&COUNTIF('Score bijhouden'!$C$4:C485,'Score bijhouden'!C485)","v":"0"}]
[null,483,{"$f":"'Score bijhouden'!C486&COUNTIF('Score bijhouden'!$C$4:C486,'Score bijhouden'!C486)","v":"0"}]
[null,484,{"$f":"'Score bijhouden'!C487&COUNTIF('Score bijhouden'!$C$4:C487,'Score bijhouden'!C487)","v":"0"}]
[null,485,{"$f":"'Score bijhouden'!C488&COUNTIF('Score bijhouden'!$C$4:C488,'Score bijhouden'!C488)","v":"0"}]
[null,486,{"$f":"'Score bijhouden'!C489&COUNTIF('Score bijhouden'!$C$4:C489,'Score bijhouden'!C489)","v":"0"}]
[null,487,{"$f":"'Score bijhouden'!C490&COUNTIF('Score bijhouden'!$C$4:C490,'Score bijhouden'!C490)","v":"0"}]
[null,488,{"$f":"'Score bijhouden'!C491&COUNTIF('Score bijhouden'!$C$4:C491,'Score bijhouden'!C491)","v":"0"}]
[null,489,{"$f":"'Score bijhouden'!C492&COUNTIF('Score bijhouden'!$C$4:C492,'Score bijhouden'!C492)","v":"0"}]
[null,490,{"$f":"'Score bijhouden'!C493&COUNTIF('Score bijhouden'!$C$4:C493,'Score bijhouden'!C493)","v":"0"}]
[null,491,{"$f":"'Score bijhouden'!C494&COUNTIF('Score bijhouden'!$C$4:C494,'Score bijhouden'!C494)","v":"0"}]
[null,492,{"$f":"'Score bijhouden'!C495&COUNTIF('Score bijhouden'!$C$4:C495,'Score bijhouden'!C495)","v":"0"}]
[null,493,{"$f":"'Score bijhouden'!C496&COUNTIF('Score bijhouden'!$C$4:C496,'Score bijhouden'!C496)","v":"0"}]
[null,494,{"$f":"'Score bijhouden'!C497&COUNTIF('Score bijhouden'!$C$4:C497,'Score bijhouden'!C497)","v":"0"}]
[null,495,{"$f":"'Score bijhouden'!C498&COUNTIF('Score bijhouden'!$C$4:C498,'Score bijhouden'!C498)","v":"0"}]
[null,496,{"$f":"'Score bijhouden'!C499&COUNTIF('Score bijhouden'!$C$4:C499,'Score bijhouden'!C499)","v":"0"}]
[null,497,{"$f":"'Score bijhouden'!C500&COUNTIF('Score bijhouden'!$C$4:C500,'Score bijhouden'!C500)","v":"0"}]
[null,498,{"$f":"'Score bijhouden'!C501&COUNTIF('Score bijhouden'!$C$4:C501,'Score bijhouden'!C501)","v":"0"}]
[null,499,{"$f":"'Score bijhouden'!C502&COUNTIF('Score bijhouden'!$C$4:C502,'Score bijhouden'!C502)","v":"0"}]
[null,500,{"$f":"'Score bijhouden'!C503&COUNTIF('Score bijhouden'!$C$4:C503,'Score bijhouden'!C503)","v":"0"}]
[null,501,{"$f":"'Score bijhouden'!C504&COUNTIF('Score bijhouden'!$C$4:C504,'Score bijhouden'!C504)","v":"0"}]
[null,502,{"$f":"'Score bijhouden'!C505&COUNTIF('Score bijhouden'!$C$4:C505,'Score bijhouden'!C505)","v":"0"}]
[null,503,{"$f":"'Score bijhouden'!C506&COUNTIF('Score bijhouden'!$C$4:C506,'Score bijhouden'!C506)","v":"0"}]
[null,504,{"$f":"'Score bijhouden'!C507&COUNTIF('Score bijhouden'!$C$4:C507,'Score bijhouden'!C507)","v":"0"}]
[null,505,{"$f":"'Score bijhouden'!C508&COUNTIF('Score bijhouden'!$C$4:C508,'Score bijhouden'!C508)","v":"0"}]
[null,506,{"$f":"'Score bijhouden'!C509&COUNTIF('Score bijhouden'!$C$4:C509,'Score bijhouden'!C509)","v":"0"}]
[null,507,{"$f":"'Score bijhouden'!C510&COUNTIF('Score bijhouden'!$C$4:C510,'Score bijhouden'!C510)","v":"0"}]
[null,508,{"$f":"'Score bijhouden'!C511&COUNTIF('Score bijhouden'!$C$4:C511,'Score bijhouden'!C511)","v":"0"}]
[null,509,{"$f":"'Score bijhouden'!C512&COUNTIF('Score bijhouden'!$C$4:C512,'Score bijhouden'!C512)","v":"0"}]
[null,510,{"$f":"'Score bijhouden'!C513&COUNTIF('Score bijhouden'!$C$4:C513,'Score bijhouden'!C513)","v":"0"}]
[null,511,{"$f":"'Score bijhouden'!C514&COUNTIF('Score bijhouden'!$C$4:C514,'Score bijhouden'!C514)","v":"0"}]
[null,512,{"$f":"'Score bijhouden'!C515&COUNTIF('Score bijhouden'!$C$4:C515,'Score bijhouden'!C515)","v":"0"}]
[null,513,{"$f":"'Score bijhouden'!C516&COUNTIF('Score bijhouden'!$C$4:C516,'Score bijhouden'!C516)","v":"0"}]
[null,514,{"$f":"'Score bijhouden'!C517&COUNTIF('Score bijhouden'!$C$4:C517,'Score bijhouden'!C517)","v":"0"}]
[null,515,{"$f":"'Score bijhouden'!C518&COUNTIF('Score bijhouden'!$C$4:C518,'Score bijhouden'!C518)","v":"0"}]
[null,516,{"$f":"'Score bijhouden'!C519&COUNTIF('Score bijhouden'!$C$4:C519,'Score bijhouden'!C519)","v":"0"}]
[null,517,{"$f":"'Score bijhouden'!C520&COUNTIF('Score bijhouden'!$C$4:C520,'Score bijhouden'!C520)","v":"0"}]
[null,518,{"$f":"'Score bijhouden'!C521&COUNTIF('Score bijhouden'!$C$4:C521,'Score bijhouden'!C521)","v":"0"}]
[null,519,{"$f":"'Score bijhouden'!C522&COUNTIF('Score bijhouden'!$C$4:C522,'Score bijhouden'!C522)","v":"0"}]
[null,520,{"$f":"'Score bijhouden'!C523&COUNTIF('Score bijhouden'!$C$4:C523,'Score bijhouden'!C523)","v":"0"}]
[null,521,{"$f":"'Score bijhouden'!C524&COUNTIF('Score bijhouden'!$C$4:C524,'Score bijhouden'!C524)","v":"0"}]
[null,522,{"$f":"'Score bijhouden'!C525&COUNTIF('Score bijhouden'!$C$4:C525,'Score bijhouden'!C525)","v":"0"}]
[null,523,{"$f":"'Score bijhouden'!C526&COUNTIF('Score bijhouden'!$C$4:C526,'Score bijhouden'!C526)","v":"0"}]
[null,524,{"$f":"'Score bijhouden'!C527&COUNTIF('Score bijhouden'!$C$4:C527,'Score bijhouden'!C527)","v":"0"}]
[null,525,{"$f":"'Score bijhouden'!C528&COUNTIF('Score bijhouden'!$C$4:C528,'Score bijhouden'!C528)","v":"0"}]
[null,526,{"$f":"'Score bijhouden'!C529&COUNTIF('Score bijhouden'!$C$4:C529,'Score bijhouden'!C529)","v":"0"}]
[null,527,{"$f":"'Score bijhouden'!C530&COUNTIF('Score bijhouden'!$C$4:C530,'Score bijhouden'!C530)","v":"0"}]
[null,528,{"$f":"'Score bijhouden'!C531&COUNTIF('Score bijhouden'!$C$4:C531,'Score bijhouden'!C531)","v":"0"}]
[null,529,{"$f":"'Score bijhouden'!C532&COUNTIF('Score bijhouden'!$C$4:C532,'Score bijhouden'!C532)","v":"0"}]
[null,530,{"$f":"'Score bijhouden'!C533&COUNTIF('Score bijhouden'!$C$4:C533,'Score bijhouden'!C533)","v":"0"}]
[null,531,{"$f":"'Score bijhouden'!C534&COUNTIF('Score bijhouden'!$C$4:C534,'Score bijhouden'!C534)","v":"0"}]
[null,532,{"$f":"'Score bijhouden'!C535&COUNTIF('Score bijhouden'!$C$4:C535,'Score bijhouden'!C535)","v":"0"}]
[null,533,{"$f":"'Score bijhouden'!C536&COUNTIF('Score bijhouden'!$C$4:C536,'Score bijhouden'!C536)","v":"0"}]
[null,534,{"$f":"'Score bijhouden'!C537&COUNTIF('Score bijhouden'!$C$4:C537,'Score bijhouden'!C537)","v":"0"}]
[null,535,{"$f":"'Score bijhouden'!C538&COUNTIF('Score bijhouden'!$C$4:C538,'Score bijhouden'!C538)","v":"0"}]
[null,536,{"$f":"'Score bijhouden'!C539&COUNTIF('Score bijhouden'!$C$4:C539,'Score bijhouden'!C539)","v":"0"}]
[null,537,{"$f":"'Score bijhouden'!C540&COUNTIF('Score bijhouden'!$C$4:C540,'Score bijhouden'!C540)","v":"0"}]
[null,538,{"$f":"'Score bijhouden'!C541&COUNTIF('Score bijhouden'!$C$4:C541,'Score bijhouden'!C541)","v":"0"}]
[null,539,{"$f":"'Score bijhouden'!C542&COUNTIF('Score bijhouden'!$C$4:C542,'Score bijhouden'!C542)","v":"0"}]
[null,540,{"$f":"'Score bijhouden'!C543&COUNTIF('Score bijhouden'!$C$4:C543,'Score bijhouden'!C543)","v":"0"}]
[null,541,{"$f":"'Score bijhouden'!C544&COUNTIF('Score bijhouden'!$C$4:C544,'Score bijhouden'!C544)","v":"0"}]
[null,542,{"$f":"'Score bijhouden'!C545&COUNTIF('Score bijhouden'!$C$4:C545,'Score bijhouden'!C545)","v":"0"}]
[null,543,{"$f":"'Score bijhouden'!C546&COUNTIF('Score bijhouden'!$C$4:C546,'Score bijhouden'!C546)","v":"0"}]
[null,544,{"$f":"'Score bijhouden'!C547&COUNTIF('Score bijhouden'!$C$4:C547,'Score bijhouden'!C547)","v":"0"}]
[null,545,{"$f":"'Score bijhouden'!C548&COUNTIF('Score bijhouden'!$C$4:C548,'Score bijhouden'!C548)","v":"0"}]
[null,546,{"$f":"'Score bijhouden'!C549&COUNTIF('Score bijhouden'!$C$4:C549,'Score bijhouden'!C549)","v":"0"}]
[null,547,{"$f":"'Score bijhouden'!C550&COUNTIF('Score bijhouden'!$C$4:C550,'Score bijhouden'!C550)","v":"0"}]
[null,548,{"$f":"'Score bijhouden'!C551&COUNTIF('Score bijhouden'!$C$4:C551,'Score bijhouden'!C551)","v":"0"}]
[null,549,{"$f":"'Score bijhouden'!C552&COUNTIF('Score bijhouden'!$C$4:C552,'Score bijhouden'!C552)","v":"0"}]
[null,550,{"$f":"'Score bijhouden'!C553&COUNTIF('Score bijhouden'!$C$4:C553,'Score bijhouden'!C553)","v":"0"}]
[null,551,{"$f":"'Score bijhouden'!C554&COUNTIF('Score bijhouden'!$C$4:C554,'Score bijhouden'!C554)","v":"0"}]
[null,552,{"$f":"'Score bijhouden'!C555&COUNTIF('Score bijhouden'!$C$4:C555,'Score bijhouden'!C555)","v":"0"}]
[null,553,{"$f":"'Score bijhouden'!C556&COUNTIF('Score bijhouden'!$C$4:C556,'Score bijhouden'!C556)","v":"0"}]
[null,554,{"$f":"'Score bijhouden'!C557&COUNTIF('Score bijhouden'!$C$4:C557,'Score bijhouden'!C557)","v":"0"}]
[null,555,{"$f":"'Score bijhouden'!C558&COUNTIF('Score bijhouden'!$C$4:C558,'Score bijhouden'!C558)","v":"0"}]
[null,556,{"$f":"'Score bijhouden'!C559&COUNTIF('Score bijhouden'!$C$4:C559,'Score bijhouden'!C559)","v":"0"}]
[null,557,{"$f":"'Score bijhouden'!C560&COUNTIF('Score bijhouden'!$C$4:C560,'Score bijhouden'!C560)","v":"0"}]
[null,558,{"$f":"'Score bijhouden'!C561&COUNTIF('Score bijhouden'!$C$4:C561,'Score bijhouden'!C561)","v":"0"}]
[null,559,{"$f":"'Score bijhouden'!C562&COUNTIF('Score bijhouden'!$C$4:C562,'Score bijhouden'!C562)","v":"0"}]
[null,560,{"$f":"'Score bijhouden'!C563&COUNTIF('Score bijhouden'!$C$4:C563,'Score bijhouden'!C563)","v":"0"}]
[null,561,{"$f":"'Score bijhouden'!C564&COUNTIF('Score bijhouden'!$C$4:C564,'Score bijhouden'!C564)","v":"0"}]
[null,562,{"$f":"'Score bijhouden'!C565&COUNTIF('Score bijhouden'!$C$4:C565,'Score bijhouden'!C565)","v":"0"}]
[null,563,{"$f":"'Score bijhouden'!C566&COUNTIF('Score bijhouden'!$C$4:C566,'Score bijhouden'!C566)","v":"0"}]
[null,564,{"$f":"'Score bijhouden'!C567&COUNTIF('Score bijhouden'!$C$4:C567,'Score bijhouden'!C567)","v":"0"}]
[null,565,{"$f":"'Score bijhouden'!C568&COUNTIF('Score bijhouden'!$C$4:C568,'Score bijhouden'!C568)","v":"0"}]
[null,566,{"$f":"'Score bijhouden'!C569&COUNTIF('Score bijhouden'!$C$4:C569,'Score bijhouden'!C569)","v":"0"}]
[null,567,{"$f":"'Score bijhouden'!C570&COUNTIF('Score bijhouden'!$C$4:C570,'Score bijhouden'!C570)","v":"0"}]
[null,568,{"$f":"'Score bijhouden'!C571&COUNTIF('Score bijhouden'!$C$4:C571,'Score bijhouden'!C571)","v":"0"}]
[null,569,{"$f":"'Score bijhouden'!C572&COUNTIF('Score bijhouden'!$C$4:C572,'Score bijhouden'!C572)","v":"0"}]
[null,570,{"$f":"'Score bijhouden'!C573&COUNTIF('Score bijhouden'!$C$4:C573,'Score bijhouden'!C573)","v":"0"}]
[null,571,{"$f":"'Score bijhouden'!C574&COUNTIF('Score bijhouden'!$C$4:C574,'Score bijhouden'!C574)","v":"0"}]
[null,572,{"$f":"'Score bijhouden'!C575&COUNTIF('Score bijhouden'!$C$4:C575,'Score bijhouden'!C575)","v":"0"}]
[null,573,{"$f":"'Score bijhouden'!C576&COUNTIF('Score bijhouden'!$C$4:C576,'Score bijhouden'!C576)","v":"0"}]
[null,574,{"$f":"'Score bijhouden'!C577&COUNTIF('Score bijhouden'!$C$4:C577,'Score bijhouden'!C577)","v":"0"}]
[null,575,{"$f":"'Score bijhouden'!C578&COUNTIF('Score bijhouden'!$C$4:C578,'Score bijhouden'!C578)","v":"0"}]
[null,576,{"$f":"'Score bijhouden'!C579&COUNTIF('Score bijhouden'!$C$4:C579,'Score bijhouden'!C579)","v":"0"}]
[null,577,{"$f":"'Score bijhouden'!C580&COUNTIF('Score bijhouden'!$C$4:C580,'Score bijhouden'!C580)","v":"0"}]
[null,578,{"$f":"'Score bijhouden'!C581&COUNTIF('Score bijhouden'!$C$4:C581,'Score bijhouden'!C581)","v":"0"}]
[null,579,{"$f":"'Score bijhouden'!C582&COUNTIF('Score bijhouden'!$C$4:C582,'Score bijhouden'!C582)","v":"0"}]
[null,580,{"$f":"'Score bijhouden'!C583&COUNTIF('Score bijhouden'!$C$4:C583,'Score bijhouden'!C583)","v":"0"}]
[null,581,{"$f":"'Score bijhouden'!C584&COUNTIF('Score bijhouden'!$C$4:C584,'Score bijhouden'!C584)","v":"0"}]
[null,582,{"$f":"'Score bijhouden'!C585&COUNTIF('Score bijhouden'!$C$4:C585,'Score bijhouden'!C585)","v":"0"}]
[null,583,{"$f":"'Score bijhouden'!C586&COUNTIF('Score bijhouden'!$C$4:C586,'Score bijhouden'!C586)","v":"0"}]
[null,584,{"$f":"'Score bijhouden'!C587&COUNTIF('Score bijhouden'!$C$4:C587,'Score bijhouden'!C587)","v":"0"}]
[null,585,{"$f":"'Score bijhouden'!C588&COUNTIF('Score bijhouden'!$C$4:C588,'Score bijhouden'!C588)","v":"0"}]
[null,586,{"$f":"'Score bijhouden'!C589&COUNTIF('Score bijhouden'!$C$4:C589,'Score bijhouden'!C589)","v":"0"}]
[null,587,{"$f":"'Score bijhouden'!C590&COUNTIF('Score bijhouden'!$C$4:C590,'Score bijhouden'!C590)","v":"0"}]
[null,588,{"$f":"'Score bijhouden'!C591&COUNTIF('Score bijhouden'!$C$4:C591,'Score bijhouden'!C591)","v":"0"}]
[null,589,{"$f":"'Score bijhouden'!C592&COUNTIF('Score bijhouden'!$C$4:C592,'Score bijhouden'!C592)","v":"0"}]
[null,590,{"$f":"'Score bijhouden'!C593&COUNTIF('Score bijhouden'!$C$4:C593,'Score bijhouden'!C593)","v":"0"}]
[null,591,{"$f":"'Score bijhouden'!C594&COUNTIF('Score bijhouden'!$C$4:C594,'Score bijhouden'!C594)","v":"0"}]
[null,592,{"$f":"'Score bijhouden'!C595&COUNTIF('Score bijhouden'!$C$4:C595,'Score bijhouden'!C595)","v":"0"}]
[null,593,{"$f":"'Score bijhouden'!C596&COUNTIF('Score bijhouden'!$C$4:C596,'Score bijhouden'!C596)","v":"0"}]
[null,594,{"$f":"'Score bijhouden'!C597&COUNTIF('Score bijhouden'!$C$4:C597,'Score bijhouden'!C597)","v":"0"}]
[null,595,{"$f":"'Score bijhouden'!C598&COUNTIF('Score bijhouden'!$C$4:C598,'Score bijhouden'!C598)","v":"0"}]
[null,596,{"$f":"'Score bijhouden'!C599&COUNTIF('Score bijhouden'!$C$4:C599,'Score bijhouden'!C599)","v":"0"}]
[null,597,{"$f":"'Score bijhouden'!C600&COUNTIF('Score bijhouden'!$C$4:C600,'Score bijhouden'!C600)","v":"0"}]
[null,598,{"$f":"'Score bijhouden'!C601&COUNTIF('Score bijhouden'!$C$4:C601,'Score bijhouden'!C601)","v":"0"}]
[null,599,{"$f":"'Score bijhouden'!C602&COUNTIF('Score bijhouden'!$C$4:C602,'Score bijhouden'!C602)","v":"0"}]
[null,600,{"$f":"'Score bijhouden'!C603&COUNTIF('Score bijhouden'!$C$4:C603,'Score bijhouden'!C603)","v":"0"}]
[null,601,{"$f":"'Score bijhouden'!C604&COUNTIF('Score bijhouden'!$C$4:C604,'Score bijhouden'!C604)","v":"0"}]
[null,602,{"$f":"'Score bijhouden'!C605&COUNTIF('Score bijhouden'!$C$4:C605,'Score bijhouden'!C605)","v":"0"}]
[null,603,{"$f":"'Score bijhouden'!C606&COUNTIF('Score bijhouden'!$C$4:C606,'Score bijhouden'!C606)","v":"0"}]
[null,604,{"$f":"'Score bijhouden'!C607&COUNTIF('Score bijhouden'!$C$4:C607,'Score bijhouden'!C607)","v":"0"}]
[null,605,{"$f":"'Score bijhouden'!C608&COUNTIF('Score bijhouden'!$C$4:C608,'Score bijhouden'!C608)","v":"0"}]
[null,606,{"$f":"'Score bijhouden'!C609&COUNTIF('Score bijhouden'!$C$4:C609,'Score bijhouden'!C609)","v":"0"}]
[null,607,{"$f":"'Score bijhouden'!C610&COUNTIF('Score bijhouden'!$C$4:C610,'Score bijhouden'!C610)","v":"0"}]
[null,608,{"$f":"'Score bijhouden'!C611&COUNTIF('Score bijhouden'!$C$4:C611,'Score bijhouden'!C611)","v":"0"}]
[null,609,{"$f":"'Score bijhouden'!C612&COUNTIF('Score bijhouden'!$C$4:C612,'Score bijhouden'!C612)","v":"0"}]
[null,610,{"$f":"'Score bijhouden'!C613&COUNTIF('Score bijhouden'!$C$4:C613,'Score bijhouden'!C613)","v":"0"}]
[null,611,{"$f":"'Score bijhouden'!C614&COUNTIF('Score bijhouden'!$C$4:C614,'Score bijhouden'!C614)","v":"0"}]
[null,612,{"$f":"'Score bijhouden'!C615&COUNTIF('Score bijhouden'!$C$4:C615,'Score bijhouden'!C615)","v":"0"}]
[null,613,{"$f":"'Score bijhouden'!C616&COUNTIF('Score bijhouden'!$C$4:C616,'Score bijhouden'!C616)","v":"0"}]
[null,614,{"$f":"'Score bijhouden'!C617&COUNTIF('Score bijhouden'!$C$4:C617,'Score bijhouden'!C617)","v":"0"}]
[null,615,{"$f":"'Score bijhouden'!C618&COUNTIF('Score bijhouden'!$C$4:C618,'Score bijhouden'!C618)","v":"0"}]
[null,616,{"$f":"'Score bijhouden'!C619&COUNTIF('Score bijhouden'!$C$4:C619,'Score bijhouden'!C619)","v":"0"}]
[null,617,{"$f":"'Score bijhouden'!C620&COUNTIF('Score bijhouden'!$C$4:C620,'Score bijhouden'!C620)","v":"0"}]
[null,618,{"$f":"'Score bijhouden'!C621&COUNTIF('Score bijhouden'!$C$4:C621,'Score bijhouden'!C621)","v":"0"}]
[null,619,{"$f":"'Score bijhouden'!C622&COUNTIF('Score bijhouden'!$C$4:C622,'Score bijhouden'!C622)","v":"0"}]
[null,620,{"$f":"'Score bijhouden'!C623&COUNTIF('Score bijhouden'!$C$4:C623,'Score bijhouden'!C623)","v":"0"}]
[null,621,{"$f":"'Score bijhouden'!C624&COUNTIF('Score bijhouden'!$C$4:C624,'Score bijhouden'!C624)","v":"0"}]
[null,622,{"$f":"'Score bijhouden'!C625&COUNTIF('Score bijhouden'!$C$4:C625,'Score bijhouden'!C625)","v":"0"}]
[null,623,{"$f":"'Score bijhouden'!C626&COUNTIF('Score bijhouden'!$C$4:C626,'Score bijhouden'!C626)","v":"0"}]
[null,624,{"$f":"'Score bijhouden'!C627&COUNTIF('Score bijhouden'!$C$4:C627,'Score bijhouden'!C627)","v":"0"}]
[null,625,{"$f":"'Score bijhouden'!C628&COUNTIF('Score bijhouden'!$C$4:C628,'Score bijhouden'!C628)","v":"0"}]